Amount (�),Supplier,Service ,Division,Cost Centre,Expenditure Category,Date Paid,Type,Transaction Reference,Dept,,Cost Centre Code
"7,336,011.50",Nottinghamshire County Council,Collection Fund,Precepting Authorities,Notts Cc Precept & Ndr Share,Precept Paid,03/02/20,Collection Fund Accounts,95522,FINANCE & CORPORATE SERVICES,,5930
"7,336,011.50",Nottinghamshire County Council,Collection Fund,Precepting Authorities,Notts Cc Precept & Ndr Share,Precept Paid,11/03/20,Collection Fund Accounts,95516,FINANCE & CORPORATE SERVICES,,5930
"937,080.41",Notts Police & Crime Commissioner,Collection Fund,Precepting Authorities,Notts Police Precept & Ndr,Precept Paid,11/03/20,Collection Fund Accounts,95518,FINANCE & CORPORATE SERVICES,,5932
"937,076.00",Notts Police & Crime Commissioner,Collection Fund,Precepting Authorities,Notts Police Precept & Ndr,Precept Paid,03/02/20,Collection Fund Accounts,95529,FINANCE & CORPORATE SERVICES,,5932
"366,321.00",Notts Fire And Rescue Service,Collection Fund,Precepting Authorities,Notts Fire Precept & Ndr,Precept Paid,03/02/20,Collection Fund Accounts,95526,FINANCE & CORPORATE SERVICES,,5933
"366,320.94",Notts Fire And Rescue Service,Collection Fund,Precepting Authorities,Notts Fire Precept & Ndr,Precept Paid,11/03/20,Collection Fund Accounts,95517,FINANCE & CORPORATE SERVICES,,5933
"303,727.76",Nottingham County Council,Liabilities,Long Term Liabilities,Central College Greythorn Dv,Balance Sheet Exp In The Year,09/01/20,Balance Sheet Exp In The Year,103143,FINANCE & CORPORATE SERVICES,,6760
"148,116.45",Streetwise Environmental Ltd           ,Neighbourhoods,Waste & Fleet Management,Streetwise Contract,Contractors-Third Party,27/02/20,Third Party Payments,104332,NEIGHBOURHOODS,,8301
"142,574.69",Streetwise Environmental Ltd           ,Neighbourhoods,Waste & Fleet Management,Streetwise Contract,Contractors-Third Party,27/03/20,Third Party Payments,105373,NEIGHBOURHOODS,,8301
"138,489.57",Streetwise Environmental Ltd           ,Neighbourhoods,Waste & Fleet Management,Streetwise Contract,Contractors-Third Party,23/01/20,Third Party Payments,103537,NEIGHBOURHOODS,,8301
"82,387.61",Gedling Borough Council,Assets,Current Assets,Parliamentary Election,Election Fees,19/02/20,Employee Related Expenditure,104437,FINANCE & CORPORATE SERVICES,,7103
"77,114.13",Visions Projects Limited,Capital Expenditure,Transformation & Innovation,Rccc Premises 19/20,Contractors-Third Party,14/02/20,Third Party Payments,104051,CAPITAL,,376
"56,783.00",Henry Riley Llp,Capital Expenditure,Transformation & Innovation,Bingham Leisure Hub,Legal & Professional Services,14/02/20,Supplies & Services,104250,CAPITAL,,314
"56,591.35",Trm Ltd,Capital Expenditure,Transformation & Innovation,Abbey Road Redevelopment,Legal & Professional Services,05/03/20,Supplies & Services,104724,CAPITAL,,312
"55,605.00",Henry Riley Llp,Capital Expenditure,Transformation & Innovation,Bingham Leisure Hub,Contractors-Third Party,23/01/20,Third Party Payments,103624,CAPITAL,,314
"55,000.00",Trent Bridge Community Trust,Communities,Community Development,Community Development,Projects & Activities,24/02/20,Supplies & Services,104347,COMMUNITIES,,1581
"54,413.00",Henry Riley Llp,Capital Expenditure,Transformation & Innovation,Bingham Leisure Hub,Legal & Professional Services,16/03/20,Supplies & Services,105179,CAPITAL,,314
"48,168.42",Visions Projects Limited,Capital Expenditure,Transformation & Innovation,Rccc Premises 19/20,Contractors-Third Party,17/01/20,Third Party Payments,103437,CAPITAL,,376
"44,123.27",Henry Riley Llp,Capital Expenditure,Transformation & Innovation,Bingham Leisure Hub,Legal & Professional Services,09/01/20,Supplies & Services,102711,CAPITAL,,314
"43,483.00",Idox Software Limited,Finance & Corporate Services,Ict,It Rechargeable Costs,Maintenance Contracts - S&S,03/03/20,Supplies & Services,104405,TRANSFORMATION,,4722
"41,657.42",Thomas Bow Ltd,Capital Expenditure,Transformation & Innovation,Cotgrave Masterplan,Legal & Professional Services,16/03/20,Supplies & Services,105046,CAPITAL,,303
"30,076.13",Nottingham City Council,Neighbourhoods,Waste & Fleet Management,Garage,Contractors-Transport,27/03/20,Transport Related Expenditure,105499,NEIGHBOURHOODS,,8700
"27,203.82",Nottingham City Council,Neighbourhoods,Waste & Fleet Management,Garage,Contractors-Transport,30/01/20,Transport Related Expenditure,103834,NEIGHBOURHOODS,,8700
"26,453.87",Nottingham City Council,Neighbourhoods,Waste & Fleet Management,Garage,Contractors-Transport,27/03/20,Transport Related Expenditure,105498,NEIGHBOURHOODS,,8700
"25,476.00",Henry Riley Llp,Capital Expenditure,Transformation & Innovation,Bingham Leisure Hub,Legal & Professional Services,27/02/20,Supplies & Services,104249,CAPITAL,,314
"25,240.00",Pakflatt (Uk) Ltd,Assets,Current Assets,Parliamentary Election,Other Equipment/Materials,27/02/20,Supplies & Services,104244,FINANCE & CORPORATE SERVICES,,7103
"24,181.69",Thomas Bow Ltd,Capital Expenditure,Transformation & Innovation,Cotgrave Masterplan,Legal & Professional Services,17/01/20,Supplies & Services,103297,CAPITAL,,303
"24,172.40",Nottingham City Council,Neighbourhoods,Waste & Fleet Management,Fleet,Diesel,24/02/20,Transport Related Expenditure,104495,NEIGHBOURHOODS,,8600
"23,586.38",Nottingham City Council,Neighbourhoods,Waste & Fleet Management,Fleet,Diesel,17/01/20,Transport Related Expenditure,103473,NEIGHBOURHOODS,,8600
"23,104.00",Sterling Hydrotech Limited,Capital Expenditure,Neighbourhoods,Blc Enhancements,Contractors-Third Party,06/01/20,Third Party Payments,102841,CAPITAL,,417
"22,059.00",Capita Software Services,Finance & Corporate Services,Ict,It Rechargeable Costs,Maintenance Contracts - S&S,20/03/20,Supplies & Services,105063,TRANSFORMATION,,4722
"21,887.66",Nottingham City Council,Neighbourhoods,Waste & Fleet Management,Fleet,Diesel,16/03/20,Transport Related Expenditure,105069,NEIGHBOURHOODS,,8600
"21,453.56",Dsi Billing Ltd,Transformation,Bsu,Central Mail,Postages,27/03/20,Supplies & Services,105336,TRANSFORMATION,,4871
"21,358.23",Horizon Landscapes Ltd,Capital Expenditure,Transformation & Innovation,Bingham Market Place Imps,Contractors-Third Party,27/03/20,Third Party Payments,105489,CAPITAL,,379
"20,000.00",Office Of Police And Crime Commissioner,Neighbourhoods,Environmental Health,Community Safety,Projects & Activities,11/03/20,Supplies & Services,104939,NEIGHBOURHOODS,,1598
"20,000.00",South Kesteven D C,Communities,Building Control,Building Control - Fee Earning,Other Local Authorities,20/03/20,Third Party Payments,105342,COMMUNITIES,,1151
"17,558.00",Hmrc,Finance & Corporate Services,Democratic Services,Borough Council Elections,Election Fees,03/03/20,Employee Related Expenditure,104659,FINANCE & CORPORATE SERVICES,,1021
"16,193.83",East Leake Parish Council,Liabilities,Long Term Liabilities,14/00357rabbit Farm Ele,Balance Sheet Exp In The Year,09/01/20,Balance Sheet Exp In The Year,103142,FINANCE & CORPORATE SERVICES,,6743
"16,110.32",Alpha Heating (Chesterfield) Ltd,Capital Expenditure,Transformation & Innovation,Property Heating Upgrades,Contractors-Third Party,03/03/20,Third Party Payments,104621,CAPITAL,,351
"15,390.00",Capita Software Services,Finance & Corporate Services,Ict,It Rechargeable Costs,Maintenance Contracts - S&S,20/03/20,Supplies & Services,105161,TRANSFORMATION,,4722
"15,000.00",Bartec Auto Id Ltd,Finance & Corporate Services,Ict,It Rechargeable Costs,Maintenance Contracts - S&S,16/03/20,Supplies & Services,104828,TRANSFORMATION,,4722
"14,708.06",Thomas Bow Ltd,Capital Expenditure,Transformation & Innovation,Cotgrave Masterplan,Legal & Professional Services,17/01/20,Supplies & Services,103283,CAPITAL,,303
"14,587.00",Netcall Technology Limited,Finance & Corporate Services,Ict,It Rechargeable Costs,Maintenance Contracts - S&S,03/02/20,Supplies & Services,103341,TRANSFORMATION,,4722
"14,136.99",Trm Ltd,Capital Expenditure,Transformation & Innovation,Abbey Road Redevelopment,Legal & Professional Services,23/01/20,Supplies & Services,103105,CAPITAL,,312
"13,576.47",Parkwood Leisure Ltd,Transformation,Property Services,Arena Civic Centre,Electricity,03/03/20,Premises Related Expenditure,101466,TRANSFORMATION,,4718
"13,470.03",Northgate Public Services (Uk) Ltd,Finance & Corporate Services,Ict,It Rechargeable Costs,Maintenance Contracts - S&S,11/03/20,Supplies & Services,104757,TRANSFORMATION,,4722
"13,447.20",One51 Es Plastics (Uk) Ltd T/A Mgb Plastics,Capital Expenditure,Neighbourhoods,Wheeled Bins,Other Equipment/Materials,27/03/20,Supplies & Services,105340,CAPITAL,,310
"13,275.60",One51 Es Plastics (Uk) Ltd T/A Mgb Plastics,Capital Expenditure,Neighbourhoods,Wheeled Bins,Other Equipment/Materials,23/01/20,Supplies & Services,103276,CAPITAL,,310
"13,275.60",One51 Es Plastics (Uk) Ltd T/A Mgb Plastics,Capital Expenditure,Neighbourhoods,Wheeled Bins,Other Equipment/Materials,27/03/20,Supplies & Services,105339,CAPITAL,,310
"13,010.04",Thomas Bow Ltd,Capital Expenditure,Transformation & Innovation,Arena Car Park,Contractors-Third Party,27/03/20,Third Party Payments,105480,CAPITAL,,336
"12,866.31",Broxtowe Borough Council,Neighbourhoods,Strategic Housing,Choice Based Lettings,Partnership Workings,27/03/20,Supplies & Services,105508,NEIGHBOURHOODS,,1107
"12,617.98",Civica Uk Ltd,Finance & Corporate Services,Ict,It Rechargeable Costs,Maintenance Contracts - S&S,03/03/20,Supplies & Services,104603,TRANSFORMATION,,4722
"12,537.62",Gee Tee Building Services,Capital Expenditure,Neighbourhoods,Disabled Facilities Grant,Grants,11/03/20,Supplies & Services,104958,CAPITAL,,332
"10,841.07",Thomas Bow Ltd,Capital Expenditure,Transformation & Innovation,Cotgrave Masterplan,Legal & Professional Services,17/02/20,Supplies & Services,104161,CAPITAL,,303
"10,525.00",Northgate Public Services (Uk) Ltd,Capital Expenditure,Finance & Corporate,Technical Infrastructure,Computer Hardware,11/03/20,Supplies & Services,104627,CAPITAL,,603
"10,522.00",County Fencing,Transformation,Property Services,Open Spaces & Footpaths,Responsive Works - Buildings,27/03/20,Premises Related Expenditure,105363,TRANSFORMATION,,1290
"10,446.25",Certas Energy T/A Pace Fuelcare,Neighbourhoods,Waste & Fleet Management,Fleet,Diesel,30/01/20,Transport Related Expenditure,99690,NEIGHBOURHOODS,,8600
"10,000.00",Trm Ltd,Capital Expenditure,Transformation & Innovation,Abbey Road Redevelopment,Legal & Professional Services,05/03/20,Supplies & Services,104723,CAPITAL,,312
"9,754.50",Kent Services Limited,Transformation,Property Services,Open Spaces & Footpaths,Responsive Works - Buildings,11/03/20,Premises Related Expenditure,104635,TRANSFORMATION,,1290
"9,633.68",Visions Projects Limited,Liabilities,Current Liabilities,Creditors Control Account,Sub Contractors Sums Deducted,17/02/20,Sub Contractors Sums Deducted,104348,FINANCE & CORPORATE SERVICES,,5101
"9,600.00",Egbert H Taylor & Co Ltd,Capital Expenditure,Neighbourhoods,Wheeled Bins,Other Equipment/Materials,11/03/20,Supplies & Services,104996,CAPITAL,,310
"9,537.00",Trent Valley Plumbing & Build,Capital Expenditure,Neighbourhoods,Disabled Facilities Grant,Grants,21/01/20,Supplies & Services,103522,CAPITAL,,332
"9,474.00",Vaughandale Construction Limited,Capital Expenditure,Neighbourhoods,Disabled Facilities Grant,Grants,05/02/20,Supplies & Services,103821,CAPITAL,,332
"8,573.00",Total Bathing,Capital Expenditure,Neighbourhoods,Disabled Facilities Grant,Grants,27/03/20,Supplies & Services,105472,CAPITAL,,332
"8,000.00",Nottingham City Council,Communities,Planning Policy,Development Plans,Legal & Professional Services,27/02/20,Supplies & Services,104582,COMMUNITIES,,1232
"7,988.50",Freeths Llp,Transformation,Property Services,Land Holdings,Legal & Professional Services,21/01/20,Supplies & Services,103557,TRANSFORMATION,,1884
"7,964.37",Solutions For Lesisure Ltd,Capital Expenditure,Neighbourhoods,Clc Changing Village Refurb,Contractors-Third Party,17/01/20,Third Party Payments,103147,CAPITAL,,402
"7,948.00",Mazars Llp,Finance & Corporate Services,Financial Services,Corporate Management,External Audit Fee,14/01/20,Supplies & Services,103012,FINANCE & CORPORATE SERVICES,,4895
"7,920.50",Civica Uk Ltd,Finance & Corporate Services,Ict,It Rechargeable Costs,Maintenance Contracts - S&S,27/03/20,Supplies & Services,105379,TRANSFORMATION,,4722
"7,800.00",Rsm,Finance & Corporate Services,Financial Services,Internal Audit,Legal & Professional Services,05/02/20,Supplies & Services,103795,FINANCE & CORPORATE SERVICES,,4708
"7,500.00",East Leake Parish Council,Communities,Community Development,Environmental Promotion,Legal & Professional Services,23/01/20,Supplies & Services,103644,COMMUNITIES,,1590
"7,471.00",A R Signs Ltd,Finance & Corporate Services,"Performance, Repn & Comms",Performance And Reputation,External Printing,27/03/20,Supplies & Services,105359,FINANCE & CORPORATE SERVICES,,4710
"7,459.21",Newark And Sherwood D C,Finance & Corporate Services,Revenues & Benefits,Nndr,Other Local Authorities,09/01/20,Third Party Payments,102993,FINANCE & CORPORATE SERVICES,,1038
"7,064.00",Trent Valley Plumbing & Build,Capital Expenditure,Neighbourhoods,Disabled Facilities Grant,Grants,17/01/20,Supplies & Services,103328,CAPITAL,,332
"7,023.44",Nottinghamshire County Cricket Club,Finance & Corporate Services,Democratic Services,Mayoral Expenses,Catering Provisions,16/03/20,Supplies & Services,105180,FINANCE & CORPORATE SERVICES,,1001
"6,539.20",Streetwise Environmental Ltd           ,Communities,Community Development,Environmental Promotion,Contractors-Supplies & Servs,16/03/20,Supplies & Services,104856,COMMUNITIES,,1590
"6,525.00",Trent Valley Plumbing & Build,Capital Expenditure,Neighbourhoods,Disabled Facilities Grant,Grants,24/02/20,Supplies & Services,104435,CAPITAL,,332
"6,475.00",Challenge Consulting,Transformation,Human Resources,Corporate Training,Training Expenses,11/02/20,Employee Related Expenditure,103798,TRANSFORMATION,,4893
"6,398.21",Tunstall Response Ltd,Neighbourhoods,Strategic Housing,Home Alarms,Other Services,14/02/20,Supplies & Services,103803,NEIGHBOURHOODS,,1137
"6,371.42",Bt Telephone Payment Centre,Finance & Corporate Services,Ict,It Rechargeable Costs,Maintenance Contracts - S&S,17/02/20,Supplies & Services,101859,TRANSFORMATION,,4722
"6,264.86",Microgen Solutions Ltd,Finance & Corporate Services,Ict,It Rechargeable Costs,Maintenance Contracts - S&S,03/03/20,Supplies & Services,104465,TRANSFORMATION,,4722
"6,091.76",Mocha Furniture Ltd,Capital Expenditure,Transformation & Innovation,Rccc Premises 19/20,Contractors-Supplies & Servs,11/02/20,Supplies & Services,103985,CAPITAL,,376
"5,685.00",Hodson Specialist Contractors,Capital Expenditure,Neighbourhoods,Blc Enhancements,Contractors-Third Party,09/01/20,Third Party Payments,103129,CAPITAL,,417
"5,660.00",Prism Medical Uk Ltd,Capital Expenditure,Neighbourhoods,Disabled Facilities Grant,Grants,11/02/20,Supplies & Services,104092,CAPITAL,,332
"5,500.00",Pinders,Transformation,Property Services,Land Holdings,Legal & Professional Services,27/03/20,Supplies & Services,105361,TRANSFORMATION,,1884
"5,484.04",P J Lilley Limited,Capital Expenditure,Neighbourhoods,Disabled Facilities Grant,Grants,06/01/20,Supplies & Services,103024,CAPITAL,,332
"5,400.00",Ep Consulting Building Services Engineers,Capital Expenditure,Transformation & Innovation,Cotgrave Phase 2,Legal & Professional Services,14/02/20,Supplies & Services,104064,CAPITAL,,387
"5,390.00",Streetwise Environmental Ltd           ,Communities,Community Development,Parks & Playing Fields-Gen,Responsive Works - Buildings,30/01/20,Premises Related Expenditure,101739,COMMUNITIES,,8910
"5,355.00",Cipfa Business Limited,Finance & Corporate Services,Financial Services,Financial Services,Subscriptions,14/02/20,Supplies & Services,103888,FINANCE & CORPORATE SERVICES,,4705
"5,343.17",The South Wolds Academy And Sixth Form,Neighbourhoods,Leisure Contracts & Car Parks,Leisure Management Contract,Premises Rents,23/01/20,Premises Related Expenditure,103181,FINANCE & CORPORATE SERVICES,,1795
"5,328.00",Trent Valley Plumbing & Build,Capital Expenditure,Neighbourhoods,Disabled Facilities Grant,Grants,24/02/20,Supplies & Services,104434,CAPITAL,,332
"5,225.00",Idox Software Limited,Capital Expenditure,Finance & Corporate,Applications/Apps,Software,06/01/20,Supplies & Services,102748,CAPITAL,,605
"5,185.00",Handicare Accessibility Limited,Capital Expenditure,Neighbourhoods,Disabled Facilities Grant,Grants,16/03/20,Supplies & Services,105055,CAPITAL,,332
"5,159.00",Lodge Tyre Co.Ltd,Neighbourhoods,Waste & Fleet Management,Waste Collection,Tyres,06/01/20,Transport Related Expenditure,102989,NEIGHBOURHOODS,,8403
"5,028.72",Ideagen Gael Ltd,Finance & Corporate Services,Ict,It Rechargeable Costs,Maintenance Contracts - S&S,27/03/20,Supplies & Services,105504,TRANSFORMATION,,4722
"5,000.00",Zurich Municipal,Finance & Corporate Services,Financial Services,Liability Claims,Excesses Paid,23/01/20,Other Control/Suspense A/Cs,103417,FINANCE & CORPORATE SERVICES,,4921
"4,995.00",Labosport Limited,Communities,Community Development,Community Development,Projects & Activities,23/01/20,Supplies & Services,103434,COMMUNITIES,,1581
"4,950.00",Arup,Transformation,Economic Regeneration,Economic Development,Other Services,05/02/20,Supplies & Services,103884,TRANSFORMATION,,1887
"4,935.41",Frank Goulding Limited,Capital Expenditure,Transformation & Innovation,The Point,Contractors-Third Party,11/02/20,Third Party Payments,103897,CAPITAL,,360
"4,899.66",Western Power Distribution (East Mids),Capital Expenditure,Transformation & Innovation,Abbey Road Redevelopment,Contractors-Third Party,18/03/20,Third Party Payments,105202,CAPITAL,,312
"4,864.00",Team Netsol Limited,Finance & Corporate Services,Ict,It Rechargeable Costs,Maintenance Contracts - S&S,06/03/20,Supplies & Services,104932,TRANSFORMATION,,4722
"4,818.28",Frank Goulding Limited,Capital Expenditure,Transformation & Innovation,The Point,Contractors-Third Party,11/03/20,Third Party Payments,104463,CAPITAL,,360
"4,760.00",Egbert H Taylor & Co Ltd,Capital Expenditure,Neighbourhoods,Wheeled Bins,Other Equipment/Materials,14/02/20,Supplies & Services,104217,CAPITAL,,310
"4,709.25",Esri (Uk) Ltd,Finance & Corporate Services,Ict,It Rechargeable Costs,Maintenance Contracts - S&S,27/03/20,Supplies & Services,105160,TRANSFORMATION,,4722
"4,604.60",The National Leaflet Company,Finance & Corporate Services,"Performance, Repn & Comms",Performance And Reputation,Legal & Professional Services,14/01/20,Supplies & Services,103014,FINANCE & CORPORATE SERVICES,,4710
"4,600.00",Dta Electrical,Communities,Community Development,Gresham,Planned Maintenance Recharge,27/03/20,Supplies & Services,105267,COMMUNITIES,,8950
"4,536.00",Egbert H Taylor & Co Ltd,Capital Expenditure,Neighbourhoods,Wheeled Bins,Other Equipment/Materials,11/03/20,Supplies & Services,104995,CAPITAL,,310
"4,531.25",Mti Technology Ltd,Finance & Corporate Services,Ict,It Rechargeable Costs,Maintenance Contracts - S&S,14/02/20,Supplies & Services,103876,TRANSFORMATION,,4722
"4,456.63",East Leake Parish Council,Liabilities,Long Term Liabilities,Woodgate Rd El 14/02313,Balance Sheet Exp In The Year,27/03/20,Balance Sheet Exp In The Year,104707,FINANCE & CORPORATE SERVICES,,6747
"4,433.69",Broxtowe Borough Council,Neighbourhoods,Strategic Housing,Choice Based Lettings,Partnership Workings,14/01/20,Supplies & Services,103126,NEIGHBOURHOODS,,1107
"4,433.69",Broxtowe Borough Council,Neighbourhoods,Strategic Housing,Choice Based Lettings,Partnership Workings,18/03/20,Supplies & Services,105041,NEIGHBOURHOODS,,1107
"4,429.00",Knight Kavanagh And Page Ltd,Neighbourhoods,Leisure Contracts & Car Parks,Edwalton Golf Courses,Legal & Professional Services,27/02/20,Supplies & Services,104588,FINANCE & CORPORATE SERVICES,,1400
"4,409.00",P J Lilley Limited,Capital Expenditure,Neighbourhoods,Disabled Facilities Grant,Grants,06/03/20,Supplies & Services,104916,CAPITAL,,332
"4,396.21",Water Plus,Transformation,Property Services,Parish Run Pub Conveniences,Water Charges,14/01/20,Premises Related Expenditure,88465,TRANSFORMATION,,1072
"4,356.80",Fisher Hargreaves Proctor,Transformation,Property Services,The Point,Legal & Professional Services,24/02/20,Supplies & Services,104427,TRANSFORMATION,,1886
"4,354.40",Blachere Illumination Uk Ltd,Communities,Community Development,West Bridgford Town Centre,Projects & Activities,06/01/20,Supplies & Services,102712,TRANSFORMATION,,1875
"4,350.08",Synectics Solutions Limited,Finance & Corporate Services,Revenues & Benefits,Council Tax,Other Miscellaneous Expenses,27/02/20,Supplies & Services,104243,FINANCE & CORPORATE SERVICES,,1045
"4,309.67",Hill Bros (Nottingham) Ltd,Capital Expenditure,Neighbourhoods,Disabled Facilities Grant,Grants,23/01/20,Supplies & Services,103329,CAPITAL,,332
"4,251.00",Lodge Tyre Co.Ltd,Neighbourhoods,Waste & Fleet Management,Waste Collection,Tyres,06/03/20,Transport Related Expenditure,104915,NEIGHBOURHOODS,,8403
"4,250.00",West Bridgford Glass Co Ltd,Capital Expenditure,Transformation & Innovation,Rccc Premises 19/20,Contractors-Third Party,11/02/20,Third Party Payments,103796,CAPITAL,,376
"4,236.00",Blachere Illumination Uk Ltd,Communities,Community Development,West Bridgford Town Centre,Other Services,30/01/20,Supplies & Services,101738,TRANSFORMATION,,1875
"4,189.00",Trent Valley Plumbing & Build,Capital Expenditure,Neighbourhoods,Disabled Facilities Grant,Grants,27/03/20,Supplies & Services,105473,CAPITAL,,332
"4,135.91",Streetwise Environmental Ltd           ,Communities,Community Development,Environmental Promotion,Contractors-Supplies & Servs,11/02/20,Supplies & Services,103840,COMMUNITIES,,1590
"4,127.15",Water Plus,Transformation,Property Services,Parish Run Pub Conveniences,Water Charges,14/01/20,Premises Related Expenditure,86437,TRANSFORMATION,,1072
"4,100.00",Dta Electrical,Capital Expenditure,Transformation & Innovation,Abbey Road Redevelopment,Contractors-Third Party,17/02/20,Third Party Payments,103791,CAPITAL,,312
"4,027.00",Lodge Tyre Co.Ltd,Neighbourhoods,Waste & Fleet Management,Waste Collection,Tyres,05/02/20,Transport Related Expenditure,103970,NEIGHBOURHOODS,,8403
"3,990.00",Ash Accounting Ltd,Transformation,Economic Regeneration,Economic Development,Grants,11/02/20,Supplies & Services,103873,TRANSFORMATION,,1887
"3,927.00",Trent Valley Plumbing & Build,Capital Expenditure,Neighbourhoods,Disabled Facilities Grant,Grants,06/01/20,Supplies & Services,103025,CAPITAL,,332
"3,915.00",Access Doors Ltd,Communities,Community Development,Gamston Community Hall,Planned Maintenance Recharge,05/03/20,Supplies & Services,104607,COMMUNITIES,,8992
"3,900.00",Trent Valley Gas Engineers Limited,Neighbourhoods,Strategic Housing,Hostel Hound Lodge,Planned Maintenance Recharge,24/02/20,Supplies & Services,103973,NEIGHBOURHOODS,,1111
"3,893.00",Via East Midlands Ltd,Communities,Planning Policy,Land Charges,Other Services,05/02/20,Supplies & Services,103794,COMMUNITIES,,1033
"3,800.00",A R Signs Ltd,Neighbourhoods,Waste & Fleet Management,Waste Collection,Contractors-Supplies & Servs,18/03/20,Supplies & Services,105266,NEIGHBOURHOODS,,8403
"3,792.94",Trevor Roberts Associates Ltd,Communities,Planning Policy,Development Plans,Legal & Professional Services,14/02/20,Supplies & Services,103835,COMMUNITIES,,1232
"3,751.27",Royal Mail Group Ltd,Transformation,Bsu,Central Mail,Postages,11/03/20,Supplies & Services,104596,TRANSFORMATION,,4871
"3,745.00",Vinshire Plumbing & Heating Limited,Capital Expenditure,Communities,Warm Homes On Prescription,Contractors-Supplies & Servs,09/01/20,Supplies & Services,103130,CAPITAL,,337
"3,700.00",Cipfa Business Limited,Finance & Corporate Services,Financial Services,Financial Services,Subscriptions,14/02/20,Supplies & Services,103886,FINANCE & CORPORATE SERVICES,,4705
"3,614.80",New Dec Interiors Ltd,Capital Expenditure,Neighbourhoods,Disabled Facilities Grant,Grants,06/03/20,Supplies & Services,104917,CAPITAL,,332
"3,540.00",New Dec Interiors Ltd,Capital Expenditure,Neighbourhoods,Disabled Facilities Grant,Grants,27/01/20,Supplies & Services,103725,CAPITAL,,332
"3,483.23",Visavvi Saville Group,Capital Expenditure,Finance & Corporate,Ict Replacement Programme,Computer Hardware,14/02/20,Supplies & Services,103914,CAPITAL,,592
"3,388.00",Sodexo Motivation Solutions Uk Ltd,Transformation,Human Resources,Human Resources,Flexible Benefits,27/01/20,Employee Related Expenditure,103340,TRANSFORMATION,,4709
"3,386.40",Reach Publishing Services Limited,Finance & Corporate Services,Revenues & Benefits,Council Tax,Legal & Professional Services,27/03/20,Supplies & Services,105371,FINANCE & CORPORATE SERVICES,,1045
"3,180.00",Zurich Municipal,Finance & Corporate Services,Financial Services,Liability Claims,Excesses Paid,24/02/20,Other Control/Suspense A/Cs,104204,FINANCE & CORPORATE SERVICES,,4921
"3,177.23",Frontline Recruitment Ltd,Neighbourhoods,Waste & Fleet Management,Waste Collection,Agency Staff,05/02/20,Employee Related Expenditure,103969,NEIGHBOURHOODS,,8403
"3,156.00",Gedling Borough Council,Transformation,Human Resources,Corporate Training,Training Expenses,03/03/20,Employee Related Expenditure,104713,TRANSFORMATION,,4893
"3,115.00",Trent Valley Gas Engineers Limited,Transformation,Property Services,The Point,Planned Maintenance Recharge,06/03/20,Supplies & Services,104578,TRANSFORMATION,,1886
"3,000.00",Obsidian Geo-Consulting Limited,Capital Expenditure,Transformation & Innovation,Abbey Road Redevelopment,Legal & Professional Services,05/03/20,Supplies & Services,104385,CAPITAL,,312
"3,000.00",Parkrun Limited,Finance & Corporate Services,Financial Services,Suspense No Code,Returned Creditors,18/03/20,Returned Creditors,104870,FINANCE & CORPORATE SERVICES,,5224
"2,979.24",Dkn Decorators Ltd,Transformation,Property Services,The Point,Responsive Works - Buildings,06/01/20,Premises Related Expenditure,103027,TRANSFORMATION,,1886
"2,975.00",Cipfa Business Limited,Finance & Corporate Services,Financial Services,Financial Services,Subscriptions,14/02/20,Supplies & Services,103887,FINANCE & CORPORATE SERVICES,,4705
"2,950.00",Ps Tax,Finance & Corporate Services,Financial Services,Financial Services,Subscriptions,03/03/20,Supplies & Services,104462,FINANCE & CORPORATE SERVICES,,4705
"2,935.40",County Supplies,Communities,Community Development,Facilities Team,Cleaning Equipment/Materials,03/02/20,Supplies & Services,103549,COMMUNITIES,,4714
"2,925.17",Severn Trent Water,Neighbourhoods,Waste & Fleet Management,Tanker Services,Waste Disposal,24/02/20,Supplies & Services,104321,NEIGHBOURHOODS,,1948
"2,925.00",Rsm,Finance & Corporate Services,Financial Services,Internal Audit,Legal & Professional Services,03/03/20,Supplies & Services,104502,FINANCE & CORPORATE SERVICES,,4708
"2,917.91",Severn Trent Water,Neighbourhoods,Waste & Fleet Management,Tanker Services,Waste Disposal,17/01/20,Supplies & Services,103293,NEIGHBOURHOODS,,1948
"2,846.10",Blachere Illumination Uk Ltd,Communities,Community Development,West Bridgford Town Centre,Other Services,30/01/20,Supplies & Services,102715,TRANSFORMATION,,1875
"2,824.44",Lift & Engineering Services Ltd,Transformation,Property Services,The Point,Service Maintenance Contracts,11/02/20,Premises Related Expenditure,103799,TRANSFORMATION,,1886
"2,800.00",2m Asbestos Consultancy,Capital Expenditure,Transformation & Innovation,Abbey Road Redevelopment,Contractors-Third Party,24/02/20,Third Party Payments,104061,CAPITAL,,312
"2,791.00",A R Signs Ltd,Finance & Corporate Services,"Performance, Repn & Comms",Performance And Reputation,External Printing,14/02/20,Supplies & Services,103954,FINANCE & CORPORATE SERVICES,,4710
"2,745.00",Lg Futures,Finance & Corporate Services,Financial Services,Financial Services,Subscriptions,03/03/20,Supplies & Services,104634,FINANCE & CORPORATE SERVICES,,4705
"2,700.00",Ps Tax,Capital Expenditure,Transformation & Innovation,The Crematorium,Legal & Professional Services,03/03/20,Supplies & Services,104466,CAPITAL,,684
"2,690.00",Tgn Construction (Yorks) Ltd,Communities,Community Development,Rushcliffe Country Park,Other Equipment/Materials,24/02/20,Supplies & Services,104007,COMMUNITIES,,1375
"2,686.00",Freeths Llp,Transformation,Property Services,Land Holdings,Legal & Professional Services,03/03/20,Supplies & Services,104342,TRANSFORMATION,,1884
"2,645.00",Stormguard Flood Plan,Rechargeable Accounts,Suspense Accounts,Building Control,Grants,05/03/20,Supplies & Services,104626,FINANCE & CORPORATE SERVICES,,5226
"2,640.00",House Clearance Specialists Ltd,Neighbourhoods,Environmental Health,Work In Default,Other Miscellaneous Expenses,06/02/20,Supplies & Services,103804,NEIGHBOURHOODS,,1066
"2,609.75",Midland Regional Printers Ltd,Finance & Corporate Services,"Performance, Repn & Comms",Performance And Reputation,External Printing,11/02/20,Supplies & Services,103797,FINANCE & CORPORATE SERVICES,,4710
"2,586.15",Park Avenue,Communities,Planning & Growth,Development Control,Agency Staff,20/03/20,Employee Related Expenditure,103966,COMMUNITIES,,1161
"2,550.00",Commercial Surface Solutions Ltd,Capital Expenditure,Transformation & Innovation,Abbey Road Redevelopment,Contractors-Third Party,17/02/20,Third Party Payments,103875,CAPITAL,,312
"2,539.80",Broxtowe Borough Council,Neighbourhoods,Leisure Contracts & Car Parks,Car Parks,Other Equipment/Materials,18/03/20,Supplies & Services,105257,FINANCE & CORPORATE SERVICES,,1900
"2,515.20",Stanley Security Solutions,Neighbourhoods,Waste & Fleet Management,Eastcroft Depot,Olas - Nottm City Council,03/02/20,Third Party Payments,103423,NEIGHBOURHOODS,,4002
"2,500.00",Bentley Project Management,Capital Expenditure,Transformation & Innovation,Cotgrave Phase 2,Legal & Professional Services,14/01/20,Supplies & Services,103030,CAPITAL,,387
"2,500.00",Bentley Project Management,Capital Expenditure,Transformation & Innovation,Cotgrave Phase 2,Legal & Professional Services,14/02/20,Supplies & Services,103995,CAPITAL,,387
"2,500.00",Bentley Project Management,Capital Expenditure,Transformation & Innovation,Cotgrave Phase 2,Legal & Professional Services,16/03/20,Supplies & Services,104918,CAPITAL,,387
"2,486.87",Frontline Recruitment Ltd,Neighbourhoods,Waste & Fleet Management,Waste Collection,Agency Staff,16/03/20,Employee Related Expenditure,104956,NEIGHBOURHOODS,,8403
"2,448.45",Baker Consultants Ltd,Communities,Planning & Growth,Development Control,Legal & Professional Services,06/01/20,Supplies & Services,102749,COMMUNITIES,,1161
"2,435.30",Bsp Consulting,Capital Expenditure,Transformation & Innovation,Cotgrave Phase 2,Legal & Professional Services,06/02/20,Supplies & Services,103890,CAPITAL,,387
"2,431.95",Frontline Recruitment Ltd,Neighbourhoods,Waste & Fleet Management,Waste Collection,Agency Staff,17/01/20,Employee Related Expenditure,102104,NEIGHBOURHOODS,,8403
"2,420.30",Telefonica Uk Limited,Finance & Corporate Services,Ict,Telephones,Mobiles,27/03/20,Supplies & Services,105405,TRANSFORMATION,,4870
"2,420.00",Allan Joyce Architects Ltd,Capital Expenditure,Transformation & Innovation,Abbey Road Redevelopment,Legal & Professional Services,21/01/20,Supplies & Services,103536,CAPITAL,,312
"2,400.00",Willards Wrought Iron,Communities,Community Development,Bridgford Park,Responsive Works - Buildings,14/01/20,Premises Related Expenditure,101731,COMMUNITIES,,8927
"2,396.84",Siemens Financial Services Limited,Neighbourhoods,Waste & Fleet Management,Waste Collection,Contractors-Supplies & Servs,05/02/20,Supplies & Services,103986,NEIGHBOURHOODS,,8403
"2,358.00",Bsp Consulting,Capital Expenditure,Transformation & Innovation,Cotgrave Phase 2,Legal & Professional Services,06/01/20,Supplies & Services,102714,CAPITAL,,387
"2,337.00",Nottinghamshire County Council,Communities,Planning Policy,Land Charges,Other Services,05/02/20,Supplies & Services,103738,COMMUNITIES,,1033
"2,330.00",Oxford Brookes University,Communities,Planning & Growth,Development Control,Training Expenses,08/01/20,Employee Related Expenditure,102465,COMMUNITIES,,1161
"2,310.00",Kent Services Limited,Transformation,Property Services,Open Spaces & Footpaths,Responsive Works - Buildings,11/03/20,Premises Related Expenditure,104837,TRANSFORMATION,,1290
"2,270.24",Obam Lift Services Ltd,Capital Expenditure,Neighbourhoods,Disabled Facilities Grant,Grants,11/03/20,Supplies & Services,104959,CAPITAL,,332
"2,246.34",Royal Mail Group Ltd,Finance & Corporate Services,Democratic Services,Borough Council Elections,Postages,06/01/20,Supplies & Services,102702,FINANCE & CORPORATE SERVICES,,1021
"2,221.04",Severn Trent Water,Finance & Corporate Services,Financial Services,Suspense No Code,Returned Creditors,14/01/20,Returned Creditors,103021,FINANCE & CORPORATE SERVICES,,5224
"2,217.95",Severn Trent Water,Capital Expenditure,Transformation & Innovation,Abbey Road Redevelopment,Contractors-Third Party,27/01/20,Third Party Payments,103668,CAPITAL,,312
"2,200.00",Bottomline Technologies Limited,Capital Expenditure,Finance & Corporate,Applications/Apps,Software,24/02/20,Supplies & Services,104382,CAPITAL,,605
"2,159.87",Royal Mail Group Ltd,Transformation,Bsu,Central Mail,Postages,20/03/20,Supplies & Services,105135,TRANSFORMATION,,4871
"2,121.95",Castle Water Limited,Communities,Community Development,Gamston Community Hall,Water Charges,27/01/20,Premises Related Expenditure,103451,COMMUNITIES,,8992
"2,118.15",Frontline Recruitment Ltd,Neighbourhoods,Waste & Fleet Management,Waste Collection,Agency Staff,27/03/20,Employee Related Expenditure,105337,NEIGHBOURHOODS,,8403
"2,112.92",Frontline Recruitment Ltd,Neighbourhoods,Waste & Fleet Management,Waste Collection,Agency Staff,17/01/20,Employee Related Expenditure,103292,NEIGHBOURHOODS,,8403
"2,083.33",Assoc Of Electoral Admin,Assets,Current Assets,Parliamentary Election,Training Expenses,09/01/20,Employee Related Expenditure,103016,FINANCE & CORPORATE SERVICES,,7103
"2,058.01",Frontline Recruitment Ltd,Neighbourhoods,Waste & Fleet Management,Waste Collection,Agency Staff,03/03/20,Employee Related Expenditure,104696,NEIGHBOURHOODS,,8403
"2,045.06",Edf Energy,Neighbourhoods,Leisure Contracts & Car Parks,Car Parks,Electricity,19/02/20,Premises Related Expenditure,104052,FINANCE & CORPORATE SERVICES,,1900
"2,023.68",Service Level Management Ltd,Transformation,Bsu,Central Mail,Postages,27/03/20,Supplies & Services,104924,TRANSFORMATION,,4871
"2,021.40",Frontline Recruitment Ltd,Neighbourhoods,Waste & Fleet Management,Waste Collection,Agency Staff,24/02/20,Employee Related Expenditure,104322,NEIGHBOURHOODS,,8403
"2,020.79",Service Level Management Ltd,Transformation,Bsu,Central Mail,Postages,16/03/20,Supplies & Services,104508,TRANSFORMATION,,4871
"2,008.55",Service Level Management Ltd,Transformation,Bsu,Central Mail,Postages,03/02/20,Supplies & Services,103161,TRANSFORMATION,,4871
"2,006.00",Freeths Llp,Capital Expenditure,Transformation & Innovation,Cotgrave Phase 2,Legal & Professional Services,16/03/20,Supplies & Services,105040,CAPITAL,,387
"2,000.00",Keyvolution,Communities,Community Development,Health Development,Grants,11/03/20,Supplies & Services,104636,COMMUNITIES,,1058
"2,000.00",Salford Professional Delevopment,Neighbourhoods,Environmental Health,Food Hygiene,Advertising,27/01/20,Supplies & Services,103540,NEIGHBOURHOODS,,1054
"1,961.34",Parkwood Leisure Ltd,Transformation,Property Services,Arena Civic Centre,Gas,03/03/20,Premises Related Expenditure,101466,TRANSFORMATION,,4718
"1,958.10",Mocha Furniture Ltd,Capital Expenditure,Transformation & Innovation,Abbey Road Redevelopment,Other Equipment/Materials,16/03/20,Supplies & Services,105070,CAPITAL,,312
"1,950.00",Matts Monitors Ltd,Neighbourhoods,Environmental Health,Pollution Control,Other Maintenance,27/03/20,Supplies & Services,105260,NEIGHBOURHOODS,,1050
"1,929.87",Frontline Recruitment Ltd,Neighbourhoods,Waste & Fleet Management,Waste Collection,Agency Staff,17/02/20,Employee Related Expenditure,104091,NEIGHBOURHOODS,,8403
"1,922.00",Geldards Llp,Capital Expenditure,Transformation & Innovation,Bingham Leisure Hub,Legal & Professional Services,13/02/20,Supplies & Services,103823,CAPITAL,,314
"1,919.00",Park Avenue,Communities,Planning & Growth,Development Control,Agency Staff,09/01/20,Employee Related Expenditure,103022,COMMUNITIES,,1161
"1,910.89",Elsies Attic Limited,Finance & Corporate Services,Financial Services,Suspense No Code,Returned Creditors,14/01/20,Returned Creditors,103168,FINANCE & CORPORATE SERVICES,,5224
"1,898.49",Frontline Recruitment Ltd,Neighbourhoods,Waste & Fleet Management,Waste Collection,Agency Staff,24/02/20,Employee Related Expenditure,104500,NEIGHBOURHOODS,,8403
"1,894.00",Skate Nottingham Cic,Capital Expenditure,Communities,Rcp Skatepark,Legal & Professional Services,30/03/20,Supplies & Services,105496,CAPITAL,,672
"1,892.62",Maltby & Company,Transformation,Customer Services,Customer Services,Planned Maintenance Recharge,27/03/20,Supplies & Services,105378,TRANSFORMATION,,4807
"1,886.00",Hmrc,Finance & Corporate Services,Financial Services,Apprenticeship Levy,Other Services,06/01/20,Supplies & Services,102732,FINANCE & CORPORATE SERVICES,,1043
"1,883.52",Cadent Gas Limited,Capital Expenditure,Transformation & Innovation,Abbey Road Redevelopment,Contractors-Third Party,27/02/20,Third Party Payments,104380,CAPITAL,,312
"1,850.00",Cipfa Business Limited,Finance & Corporate Services,Financial Services,Financial Services,Subscriptions,24/02/20,Supplies & Services,103962,FINANCE & CORPORATE SERVICES,,4705
"1,840.96",Frontline Recruitment Ltd,Neighbourhoods,Waste & Fleet Management,Waste Collection,Agency Staff,27/03/20,Employee Related Expenditure,105164,NEIGHBOURHOODS,,8403
"1,836.00",Kch Garden Sq Barristers,Transformation,Legal,Legal Services,Other Grants (Refcus),31/03/20,Income,105534,FINANCE & CORPORATE SERVICES,,4701
"1,834.20",Ccs Media,Capital Expenditure,Finance & Corporate,Ict Replacement Programme,Computer Hardware,06/02/20,Supplies & Services,103731,CAPITAL,,592
"1,813.50",Nottingham City Council,Transformation,Human Resources,Corporate Training,Training Expenses,11/03/20,Employee Related Expenditure,105035,TRANSFORMATION,,4893
"1,800.00",Mascot Management Ltd,Capital Expenditure,Transformation & Innovation,Cotgrave Masterplan,Legal & Professional Services,16/03/20,Supplies & Services,104920,CAPITAL,,303
"1,798.80",Iken Business Ltd,Finance & Corporate Services,Ict,It Rechargeable Costs,Maintenance Contracts - S&S,16/03/20,Supplies & Services,105061,TRANSFORMATION,,4722
"1,795.00",Nottingham City Council,Finance & Corporate Services,Democratic Services,Elections & Corp Info Ha,Training Expenses,18/03/20,Employee Related Expenditure,105034,FINANCE & CORPORATE SERVICES,,4702
"1,785.30",The South Wolds Academy And Sixth Form,Neighbourhoods,Leisure Contracts & Car Parks,Leisure Management Contract,Gas,19/02/20,Premises Related Expenditure,104218,FINANCE & CORPORATE SERVICES,,1795
"1,782.40",Killgerm Chemicals Ltd,Neighbourhoods,Environmental Health,Pest Control,Other Equipment/Materials,03/03/20,Supplies & Services,104488,NEIGHBOURHOODS,,1062
"1,767.71",Nsl Limited,Neighbourhoods,Leisure Contracts & Car Parks,Car Parks,Maintenance Contracts - S&S,17/01/20,Supplies & Services,103026,FINANCE & CORPORATE SERVICES,,1900
"1,766.00",Hmrc,Finance & Corporate Services,Financial Services,Apprenticeship Levy,Other Services,03/03/20,Supplies & Services,104658,FINANCE & CORPORATE SERVICES,,1043
"1,763.00",Hmrc,Finance & Corporate Services,Financial Services,Apprenticeship Levy,Other Services,23/01/20,Supplies & Services,103630,FINANCE & CORPORATE SERVICES,,1043
"1,755.00",A R Signs Ltd,Capital Expenditure,Transformation & Innovation,Rccc Premises 19/20,Contractors-Third Party,24/02/20,Third Party Payments,104197,CAPITAL,,376
"1,744.40",Mocha Furniture Ltd,Capital Expenditure,Neighbourhoods,Clc Changing Village Refurb,Other Equipment/Materials,23/01/20,Supplies & Services,103552,CAPITAL,,402
"1,734.00",Hmrc,Finance & Corporate Services,Financial Services,Apprenticeship Levy,Other Services,27/03/20,Supplies & Services,105386,FINANCE & CORPORATE SERVICES,,1043
"1,718.47",The South Wolds Academy And Sixth Form,Neighbourhoods,Leisure Contracts & Car Parks,Leisure Management Contract,Gas,11/02/20,Premises Related Expenditure,103612,FINANCE & CORPORATE SERVICES,,1795
"1,713.07",The South Wolds Academy And Sixth Form,Neighbourhoods,Leisure Contracts & Car Parks,Leisure Management Contract,Gas,24/02/20,Premises Related Expenditure,104171,FINANCE & CORPORATE SERVICES,,1795
"1,711.90",Nsl Limited,Neighbourhoods,Leisure Contracts & Car Parks,Car Parks,Maintenance Contracts - S&S,14/02/20,Supplies & Services,103965,FINANCE & CORPORATE SERVICES,,1900
"1,710.00",Ludlow Hill Mot Centre,Neighbourhoods,Environmental Health,Hackney Carriage/Private Hire,Contractors-Transport,27/02/20,Transport Related Expenditure,104503,NEIGHBOURHOODS,,1031
"1,691.34",Nottinghamshire County Cricket Club,Finance & Corporate Services,Democratic Services,Mayoral Expenses,Hospitality,06/01/20,Supplies & Services,102458,FINANCE & CORPORATE SERVICES,,1001
"1,677.80",Royal Mail Group Ltd,Assets,Current Assets,Parliamentary Election,Postages,06/02/20,Supplies & Services,103726,FINANCE & CORPORATE SERVICES,,7103
"1,668.00",Riba Enterprises Ltd,Finance & Corporate Services,Financial Services,Suspense No Code,Returned Creditors,14/01/20,Returned Creditors,103145,FINANCE & CORPORATE SERVICES,,5224
"1,664.00",Imtech G&H Ltd,Neighbourhoods,Strategic Housing,Hostel Hound Lodge,Planned Maintenance Recharge,20/03/20,Supplies & Services,105344,NEIGHBOURHOODS,,1111
"1,662.00",Zurich Municipal,Finance & Corporate Services,Financial Services,Liability Claims,Excesses Paid,20/03/20,Other Control/Suspense A/Cs,105015,FINANCE & CORPORATE SERVICES,,4921
"1,650.00",Nottingham City Council,Transformation,Economic Regeneration,Economic Development,Legal & Professional Services,06/03/20,Supplies & Services,104842,TRANSFORMATION,,1887
"1,640.00",Daykin Floor Renovation Ltd,Communities,Community Development,Lutterell Hall,Service Maintenance Contracts,27/02/20,Premises Related Expenditure,104208,COMMUNITIES,,8990
"1,637.01",The South Wolds Academy And Sixth Form,Neighbourhoods,Leisure Contracts & Car Parks,Leisure Management Contract,Electricity,27/03/20,Premises Related Expenditure,105281,FINANCE & CORPORATE SERVICES,,1795
"1,627.33",Nsl Limited,Neighbourhoods,Leisure Contracts & Car Parks,Car Parks,Maintenance Contracts - S&S,16/03/20,Supplies & Services,104732,FINANCE & CORPORATE SERVICES,,1900
"1,619.36",The South Wolds Academy And Sixth Form,Neighbourhoods,Leisure Contracts & Car Parks,Leisure Management Contract,Gas,11/02/20,Premises Related Expenditure,103729,FINANCE & CORPORATE SERVICES,,1795
"1,608.00",Attenborough Industrial Doors,Transformation,Property Services,Colliers Ph 2,Service Maintenance Contracts,24/02/20,Premises Related Expenditure,104014,TRANSFORMATION,,1892
"1,589.00",Browne Jacobson,Capital Income,Capital Receipts,"Sharphill, Edwalton (Wells Lan",Legal & Professional Services,11/02/20,Supplies & Services,103144,COMMUNITIES,,9081
"1,541.34",Service Level Management Ltd,Transformation,Bsu,Central Mail,Postages,03/02/20,Supplies & Services,103162,TRANSFORMATION,,4871
"1,538.70",Nottingham City Council,Finance & Corporate Services,Democratic Services,Members Services,Training Expenses,27/02/20,Employee Related Expenditure,104331,FINANCE & CORPORATE SERVICES,,1000
"1,526.00",D.Tec International Ltd,Transformation,Human Resources,Human Resources,Legal & Professional Services,20/03/20,Supplies & Services,104994,TRANSFORMATION,,4709
"1,524.31",Service Level Management Ltd,Transformation,Bsu,Central Mail,Postages,16/03/20,Supplies & Services,104509,TRANSFORMATION,,4871
"1,512.50",Freeths Llp,Capital Expenditure,Transformation & Innovation,Cotgrave Phase 2,Legal & Professional Services,11/02/20,Supplies & Services,104090,CAPITAL,,387
"1,500.00",Apna Alzheimers Association,Communities,Community Development,Health Development,Grants,18/03/20,Supplies & Services,105258,COMMUNITIES,,1058
"1,500.00",Notts County Football Club,Communities,Community Development,Young,Grants,20/03/20,Supplies & Services,105259,COMMUNITIES,,1048
"1,500.00",Pinders,Transformation,Property Services,Land Holdings,Legal & Professional Services,11/03/20,Supplies & Services,104586,TRANSFORMATION,,1884
"1,500.00",West Bridgford Wire,Communities,Community Development,Community Development,Sponsorship Income,03/03/20,Income,104736,COMMUNITIES,,1581
"1,485.00",Carrington West Limited,Communities,Planning & Growth,Development Control,Agency Staff,06/01/20,Employee Related Expenditure,102558,COMMUNITIES,,1161
"1,485.00",Ludlow Hill Mot Centre,Neighbourhoods,Environmental Health,Hackney Carriage/Private Hire,Contractors-Transport,17/01/20,Transport Related Expenditure,103266,NEIGHBOURHOODS,,1031
"1,475.81",Mad Dog Sports,Communities,Community Development,Sports Development,Projects & Activities,05/02/20,Supplies & Services,103734,COMMUNITIES,,1593
"1,475.00",C A Wood T/A Orange Wood Design,Finance & Corporate Services,"Performance, Repn & Comms",Performance And Reputation,Legal & Professional Services,11/03/20,Supplies & Services,105024,FINANCE & CORPORATE SERVICES,,4710
"1,470.01",Royal Mail Group Ltd,Transformation,Bsu,Central Mail,Postages,11/02/20,Supplies & Services,103822,TRANSFORMATION,,4871
"1,457.50",Carrington West Limited,Communities,Planning & Growth,Development Control,Agency Staff,06/01/20,Employee Related Expenditure,102746,COMMUNITIES,,1161
"1,450.00",Howard Ward Associates Ltd,Assets,Non Current Assets,S215 Notice-Bldgs @ Flintham,Balance Sheet Exp In The Year,14/02/20,Balance Sheet Exp In The Year,103838,FINANCE & CORPORATE SERVICES,,6633
"1,430.00",Carrington West Limited,Communities,Planning & Growth,Development Control,Agency Staff,05/02/20,Employee Related Expenditure,103732,COMMUNITIES,,1161
"1,423.95",Telefonica Uk Limited,Finance & Corporate Services,Ict,Telephones,Mobiles,14/01/20,Supplies & Services,102696,TRANSFORMATION,,4870
"1,423.55",Park Avenue,Communities,Planning & Growth,Development Control,Agency Staff,06/01/20,Employee Related Expenditure,102737,COMMUNITIES,,1161
"1,423.10",Park Avenue,Communities,Planning & Growth,Development Control,Agency Staff,27/03/20,Employee Related Expenditure,105042,COMMUNITIES,,1161
"1,422.65",Park Avenue,Communities,Planning & Growth,Development Control,Agency Staff,20/03/20,Employee Related Expenditure,104199,COMMUNITIES,,1161
"1,420.40",Park Avenue,Communities,Planning & Growth,Development Control,Agency Staff,03/02/20,Employee Related Expenditure,103784,COMMUNITIES,,1161
"1,418.15",Park Avenue,Communities,Planning & Growth,Development Control,Agency Staff,20/03/20,Employee Related Expenditure,104964,COMMUNITIES,,1161
"1,417.25",Park Avenue,Communities,Planning & Growth,Development Control,Agency Staff,27/03/20,Employee Related Expenditure,105279,COMMUNITIES,,1161
"1,410.10",Telefonica Uk Limited,Finance & Corporate Services,Ict,Telephones,Mobiles,16/03/20,Supplies & Services,104428,TRANSFORMATION,,4870
"1,406.87",Frontline Recruitment Ltd,Neighbourhoods,Waste & Fleet Management,Waste Collection,Agency Staff,09/01/20,Employee Related Expenditure,102985,NEIGHBOURHOODS,,8403
"1,404.89",Telefonica Uk Limited,Finance & Corporate Services,Ict,Telephones,Mobiles,11/02/20,Supplies & Services,103555,TRANSFORMATION,,4870
"1,404.76",Cadent Gas Limited,Capital Expenditure,Transformation & Innovation,Abbey Road Redevelopment,Contractors-Third Party,27/02/20,Third Party Payments,104379,CAPITAL,,312
"1,402.50",Carrington West Limited,Communities,Planning & Growth,Development Control,Agency Staff,30/01/20,Employee Related Expenditure,103733,COMMUNITIES,,1161
"1,400.22",British Gas Business,Communities,Community Development,Gresham,Electricity,24/02/20,Premises Related Expenditure,104452,COMMUNITIES,,8950
"1,400.00",Site Rescue (Leeds Office),Communities,Community Development,Arts,Projects & Activities,09/01/20,Supplies & Services,102703,COMMUNITIES,,1550
"1,395.00",Bridgford Energy Consultants Ltd,Transformation,Economic Regeneration,Cotgrave Precinct,Legal & Professional Services,17/01/20,Supplies & Services,103159,TRANSFORMATION,,1885
"1,395.00",Ludlow Hill Mot Centre,Neighbourhoods,Environmental Health,Hackney Carriage/Private Hire,Contractors-Transport,17/01/20,Transport Related Expenditure,103267,NEIGHBOURHOODS,,1031
"1,392.00",Parkwood Leisure Ltd,Neighbourhoods,Leisure Contracts & Car Parks,Leisure Management Contract,D.B.S Checks - Employees,06/01/20,Employee Related Expenditure,102825,FINANCE & CORPORATE SERVICES,,1795
"1,380.72",Frontline Recruitment Ltd,Neighbourhoods,Waste & Fleet Management,Waste Collection,Agency Staff,09/01/20,Employee Related Expenditure,102990,NEIGHBOURHOODS,,8403
"1,378.64",Streetwise Environmental Ltd           ,Communities,Community Development,Environmental Promotion,Contractors-Supplies & Servs,11/03/20,Supplies & Services,104600,COMMUNITIES,,1590
"1,375.00",Carrington West Limited,Communities,Planning & Growth,Development Control,Agency Staff,03/02/20,Employee Related Expenditure,103647,COMMUNITIES,,1161
"1,365.00",Lexis Nexis Uk,Finance & Corporate Services,Democratic Services,Borough Council Elections,Books & Publications,11/03/20,Supplies & Services,104699,FINANCE & CORPORATE SERVICES,,1021
"1,361.00",Inspire,Transformation,Customer Services,Customer Services,Contract Cleaning,14/02/20,Premises Related Expenditure,103184,TRANSFORMATION,,4807
"1,360.00",2425  Squadron Atc,Finance & Corporate Services,Democratic Services,Members Services,Grants,27/03/20,Supplies & Services,105171,FINANCE & CORPORATE SERVICES,,1000
"1,356.00",Freeths Llp,Transformation,Property Services,Land Holdings,Legal & Professional Services,21/01/20,Supplies & Services,103526,TRANSFORMATION,,1884
"1,351.75",British Gas Business,Communities,Community Development,Gresham,Electricity,27/01/20,Premises Related Expenditure,103569,COMMUNITIES,,8950
"1,349.44",Castle Water Limited,Neighbourhoods,Waste & Fleet Management,Abbey Road Depot,Water Charges,27/01/20,Premises Related Expenditure,103449,NEIGHBOURHOODS,,4001
"1,344.00",Phoenix Software,Finance & Corporate Services,Ict,It Rechargeable Costs,Software,03/02/20,Supplies & Services,103468,TRANSFORMATION,,4722
"1,334.67",Live And Local Limited,Communities,Community Development,Arts,Projects & Activities,11/02/20,Supplies & Services,103436,COMMUNITIES,,1550
"1,325.00",Print Image Network Ltd,Finance & Corporate Services,Democratic Services,Borough Council Elections,External Printing,03/03/20,Supplies & Services,104403,FINANCE & CORPORATE SERVICES,,1021
"1,320.00",A W Lymn Limited,Transformation,Property Services,Open Spaces & Footpaths,Responsive Works - Buildings,11/02/20,Premises Related Expenditure,103749,TRANSFORMATION,,1290
"1,320.00",Lex Leisure,Transformation,Bsu,Business Support Unit,Legal & Professional Services,14/02/20,Supplies & Services,103882,TRANSFORMATION,,4805
"1,300.00",Capita Software Services,Finance & Corporate Services,Ict,It Rechargeable Costs,Legal & Professional Services,27/03/20,Supplies & Services,105345,TRANSFORMATION,,4722
"1,300.00",Knifton'S Mobile Toilets,Neighbourhoods,Leisure Contracts & Car Parks,Edwalton Golf Courses,Responsive Works - Buildings,20/03/20,Premises Related Expenditure,105191,FINANCE & CORPORATE SERVICES,,1400
"1,300.00",The Treecology Team Ltd,Communities,Community Development,Rushcliffe Country Park,Other Equipment/Materials,20/03/20,Supplies & Services,105365,COMMUNITIES,,1375
"1,300.00",West Bridgford Wire,Communities,Community Development,Community Development,Sponsorship Income,21/01/20,Income,103545,COMMUNITIES,,1581
"1,282.92",Tip Europe Limited,Neighbourhoods,Waste & Fleet Management,Tanker Services,Hire Of Transport/Plant,03/03/20,Transport Related Expenditure,104397,NEIGHBOURHOODS,,1948
"1,270.96",British Gas Business,Neighbourhoods,Waste & Fleet Management,Abbey Road Depot,Electricity,16/03/20,Premises Related Expenditure,104496,NEIGHBOURHOODS,,4001
"1,267.46",The South Wolds Academy And Sixth Form,Neighbourhoods,Leisure Contracts & Car Parks,Leisure Management Contract,Water Charges,14/02/20,Premises Related Expenditure,104159,FINANCE & CORPORATE SERVICES,,1795
"1,265.80",Lyreco,Communities,Community Development,Facilities Team,Cleaning Equipment/Materials,20/03/20,Supplies & Services,104747,COMMUNITIES,,4714
"1,251.85",British Gas Business,Communities,Community Development,Gresham,Electricity,27/03/20,Premises Related Expenditure,105288,COMMUNITIES,,8950
"1,250.00",Idox Software Limited,Capital Expenditure,Finance & Corporate,Applications/Apps,Software,14/02/20,Supplies & Services,103880,CAPITAL,,605
"1,250.00",Parkrun Limited,Communities,Community Development,Health Development,Grants,24/02/20,Supplies & Services,104002,COMMUNITIES,,1058
"1,250.00",Parkrun Limited,Communities,Community Development,Sports Development,Projects & Activities,24/02/20,Supplies & Services,104002,COMMUNITIES,,1593
"1,248.00",Mk Door Systems Ltd T/A Style Midlands,Transformation,Property Services,Arena Civic Centre,Service Maintenance Contracts,17/01/20,Premises Related Expenditure,103203,TRANSFORMATION,,4718
"1,240.00",Nottinghamshire County Council,Communities,Planning Policy,Land Charges,Other Services,24/02/20,Supplies & Services,104336,COMMUNITIES,,1033
"1,236.24",British Gas Business,Neighbourhoods,Waste & Fleet Management,Abbey Road Depot,Electricity,09/01/20,Premises Related Expenditure,102757,NEIGHBOURHOODS,,4001
"1,235.70",Adt Fire And Security Plc,Neighbourhoods,Waste & Fleet Management,Abbey Road Depot,Service Maintenance Contracts,09/01/20,Premises Related Expenditure,101370,NEIGHBOURHOODS,,4001
"1,215.00",Ludlow Hill Mot Centre,Neighbourhoods,Environmental Health,Hackney Carriage/Private Hire,Contractors-Transport,18/03/20,Transport Related Expenditure,105028,NEIGHBOURHOODS,,1031
"1,212.15",Integrity Communications Ltd,Capital Expenditure,Finance & Corporate,Ict Replacement Programme,Computer Hardware,03/02/20,Supplies & Services,103895,CAPITAL,,592
"1,202.32",Reach Publishing Services Limited,Communities,Planning & Growth,Development Control,Advertising,23/01/20,Supplies & Services,103431,COMMUNITIES,,1161
"1,201.25",British Gas Business,Neighbourhoods,Waste & Fleet Management,Abbey Road Depot,Electricity,23/01/20,Premises Related Expenditure,103461,NEIGHBOURHOODS,,4001
"1,200.00",Environment Agency,Capital Expenditure,Transformation & Innovation,Abbey Road Redevelopment,Legal & Professional Services,03/03/20,Supplies & Services,104710,CAPITAL,,312
"1,200.00",Lex Leisure,Transformation,Bsu,Business Support Unit,Legal & Professional Services,06/01/20,Supplies & Services,102710,TRANSFORMATION,,4805
"1,197.69",British Gas Business,Neighbourhoods,Waste & Fleet Management,Abbey Road Depot,Electricity,27/03/20,Premises Related Expenditure,105530,NEIGHBOURHOODS,,4001
"1,170.06",Royal Mail Group Ltd,Transformation,Bsu,Central Mail,Postages,23/01/20,Supplies & Services,103213,TRANSFORMATION,,4871
"1,167.00",Medigold Health Consultancy Ltd,Transformation,Human Resources,Human Resources,Occupational Health,20/03/20,Employee Related Expenditure,104997,TRANSFORMATION,,4709
"1,166.00",Proactis Limited,Finance & Corporate Services,Ict,It Rechargeable Costs,Maintenance Contracts - S&S,13/02/20,Supplies & Services,104012,TRANSFORMATION,,4722
"1,165.00",Blachere Illumination Uk Ltd,Communities,Community Development,West Bridgford Town Centre,Other Services,06/01/20,Supplies & Services,102713,TRANSFORMATION,,1875
"1,152.49",Service Level Management Ltd,Transformation,Bsu,Central Mail,Postages,27/03/20,Supplies & Services,104925,TRANSFORMATION,,4871
"1,149.00",Wel Medical Limited,Communities,Community Development,Gamston Community Hall,Responsive Works - Buildings,20/03/20,Premises Related Expenditure,105358,COMMUNITIES,,8992
"1,132.96",Reach Publishing Services Limited,Communities,Planning & Growth,Development Control,Advertising,09/01/20,Supplies & Services,103010,COMMUNITIES,,1161
"1,120.00",2m Asbestos Consultancy,Assets,Non Current Assets,S215 Notice-Bldgs @ Flintham,Balance Sheet Exp In The Year,27/03/20,Balance Sheet Exp In The Year,105346,FINANCE & CORPORATE SERVICES,,6633
"1,119.52",Corona Energy Retail 3 Ltd,Neighbourhoods,Waste & Fleet Management,Abbey Road Depot,Gas,23/01/20,Premises Related Expenditure,103464,NEIGHBOURHOODS,,4001
"1,112.08",Karter Thomas Limited,Neighbourhoods,Strategic Housing,Strategic Housing Ha,Agency Staff,03/02/20,Employee Related Expenditure,102987,NEIGHBOURHOODS,,4789
"1,101.39",Print Image Network Ltd,Finance & Corporate Services,Democratic Services,Electoral Registration,External Printing,14/01/20,Supplies & Services,103323,FINANCE & CORPORATE SERVICES,,1026
"1,100.00",Sue Griffiths Consulting Ltd,Transformation,Human Resources,Corporate Training,Training Expenses,11/02/20,Employee Related Expenditure,103813,TRANSFORMATION,,4893
"1,095.60",Reach Publishing Services Limited,Communities,Planning & Growth,Development Control,Advertising,05/02/20,Supplies & Services,103806,COMMUNITIES,,1161
"1,088.82",Ruddington Village Centre Partnership,Transformation,Economic Regeneration,Economic Development,Legal & Professional Services,20/03/20,Supplies & Services,105018,TRANSFORMATION,,1887
"1,087.35",Royal Mail Group Ltd,Transformation,Bsu,Central Mail,Postages,11/03/20,Supplies & Services,104698,TRANSFORMATION,,4871
"1,080.72",Calor Gas Limited,Communities,Community Development,West Park,Gas,17/01/20,Premises Related Expenditure,102845,COMMUNITIES,,8994
"1,080.00",Nottingham City Council,Neighbourhoods,Waste & Fleet Management,Waste Collection,Training Expenses,18/03/20,Employee Related Expenditure,105277,NEIGHBOURHOODS,,8403
"1,064.26",Maltby & Company,Transformation,Property Services,The Point,Planned Maintenance Recharge,27/03/20,Supplies & Services,105377,TRANSFORMATION,,1886
"1,062.40",Jne Security Ltd,Neighbourhoods,Environmental Health,Community Safety,Projects & Activities,27/03/20,Supplies & Services,105488,NEIGHBOURHOODS,,1598
"1,060.00",Energy Assets Limited,Capital Expenditure,Transformation & Innovation,Abbey Road Redevelopment,Contractors-Third Party,17/02/20,Third Party Payments,104228,CAPITAL,,312
"1,050.00",The Tudor Lodge Hotel,Neighbourhoods,Strategic Housing,Homeless B&B,Housing-Emergency Accommodn,03/02/20,Supplies & Services,103425,NEIGHBOURHOODS,,1110
"1,017.50",Carrington West Limited,Communities,Planning & Growth,Development Control,Agency Staff,18/03/20,Employee Related Expenditure,104972,COMMUNITIES,,1161
"1,011.42",Service Level Management Ltd,Transformation,Bsu,Central Mail,Postages,16/03/20,Supplies & Services,104506,TRANSFORMATION,,4871
"1,006.60",Encore Envelopes Ltd,Transformation,Bsu,Business Support Unit,Stationery,27/03/20,Supplies & Services,105464,TRANSFORMATION,,4805
"1,003.00",Nottingham City Council,Neighbourhoods,Waste & Fleet Management,Eastcroft Depot,Olas - Nottm City Council,24/02/20,Third Party Payments,104493,NEIGHBOURHOODS,,4002
"1,000.00",Bingham Town Council (Precept),Neighbourhoods,Environmental Health,Community Safety,Projects & Activities,18/03/20,Supplies & Services,104863,NEIGHBOURHOODS,,1598
"1,000.00",Dta Electrical,Capital Expenditure,Transformation & Innovation,Abbey Road Redevelopment,Contractors-Third Party,27/01/20,Third Party Payments,103629,CAPITAL,,312
"1,000.00",Kingston On Soar Village Hall,Finance & Corporate Services,Democratic Services,Members Services,Grants,05/03/20,Supplies & Services,104644,FINANCE & CORPORATE SERVICES,,1000
"1,000.00",Lex Leisure,Transformation,Bsu,Business Support Unit,Legal & Professional Services,16/03/20,Supplies & Services,104746,TRANSFORMATION,,4805
"1,000.00",Streetwise Environmental Ltd           ,Communities,Community Development,Health Development,Projects & Activities,11/03/20,Supplies & Services,104857,COMMUNITIES,,1058
"1,000.00",The Tomorrow Project,Finance & Corporate Services,Democratic Services,Members Services,Grants,27/01/20,Supplies & Services,103281,FINANCE & CORPORATE SERVICES,,1000
992.49,Nottingham City Council,Neighbourhoods,Waste & Fleet Management,Eastcroft Depot,Olas - Nottm City Council,17/01/20,Third Party Payments,103474,NEIGHBOURHOODS,,4002
990.00,Tip Europe Limited,Neighbourhoods,Waste & Fleet Management,Tanker Services,Hire Of Transport/Plant,03/03/20,Transport Related Expenditure,104157,NEIGHBOURHOODS,,1948
976.00,Clearway (Midlands) Ltd,Transformation,Property Services,The Point,Planned Maintenance Recharge,03/03/20,Supplies & Services,104602,TRANSFORMATION,,1886
975.00,Solace Group Ltd,Finance & Corporate Services,Emt,Executive Management Team,Training Expenses,14/01/20,Employee Related Expenditure,103209,FINANCE & CORPORATE SERVICES,,4721
973.04,Corona Energy Retail 3 Ltd,Neighbourhoods,Waste & Fleet Management,Abbey Road Depot,Gas,09/01/20,Premises Related Expenditure,102756,NEIGHBOURHOODS,,4001
969.33,Calor Gas Limited,Communities,Community Development,West Park,Gas,24/02/20,Premises Related Expenditure,104352,COMMUNITIES,,8994
963.84,Castle Water Limited,Neighbourhoods,Waste & Fleet Management,Abbey Road Depot,Water Charges,27/01/20,Premises Related Expenditure,103448,NEIGHBOURHOODS,,4001
962.50,Carrington West Limited,Communities,Planning & Growth,Development Control,Agency Staff,14/01/20,Employee Related Expenditure,103008,COMMUNITIES,,1161
962.50,Carrington West Limited,Communities,Planning & Growth,Development Control,Agency Staff,30/01/20,Employee Related Expenditure,103649,COMMUNITIES,,1161
954.00,Creative Festivities Limited,Finance & Corporate Services,"Performance, Repn & Comms",Performance And Reputation,Other Miscellaneous Expenses,21/01/20,Supplies & Services,103438,FINANCE & CORPORATE SERVICES,,4710
950.00,Idox Software Limited,Capital Expenditure,Finance & Corporate,Technical Infrastructure,Computer Hardware,27/03/20,Supplies & Services,105354,CAPITAL,,603
949.47,Nottingham City Council,Neighbourhoods,Waste & Fleet Management,Eastcroft Depot,Olas - Nottm City Council,24/02/20,Third Party Payments,104494,NEIGHBOURHOODS,,4002
947.84,Combellack,Capital Expenditure,Neighbourhoods,Disabled Facilities Grant,Grants,27/02/20,Supplies & Services,104499,CAPITAL,,332
947.50,Freeths Llp,Capital Expenditure,Transformation & Innovation,Cotgrave Phase 2,Legal & Professional Services,27/01/20,Supplies & Services,103558,CAPITAL,,387
942.67,Frontline Communications Group Limited,Transformation,Customer Services,Customer Services,Other Services,11/03/20,Supplies & Services,104861,TRANSFORMATION,,4807
942.65,Haven Power Limited,Transformation,Property Services,Castle Donington,Electricity,09/01/20,Premises Related Expenditure,102376,NEIGHBOURHOODS,,1863
917.87,Frontline Recruitment Ltd,Neighbourhoods,Waste & Fleet Management,Waste Collection,Agency Staff,09/01/20,Employee Related Expenditure,103023,NEIGHBOURHOODS,,8403
915.43,Adt Fire And Security Plc,Neighbourhoods,Waste & Fleet Management,Abbey Road Depot,Service Maintenance Contracts,09/01/20,Premises Related Expenditure,101772,NEIGHBOURHOODS,,4001
914.27,Ninesharp Ltd,Finance & Corporate Services,Ict,It,Agency Staff,27/01/20,Employee Related Expenditure,103424,TRANSFORMATION,,4703
914.27,Ninesharp Ltd,Finance & Corporate Services,Ict,It,Agency Staff,03/02/20,Employee Related Expenditure,103568,TRANSFORMATION,,4703
914.27,Ninesharp Ltd,Finance & Corporate Services,Ict,It,Agency Staff,11/02/20,Employee Related Expenditure,103818,TRANSFORMATION,,4703
910.00,Licence Check Ltd,Neighbourhoods,Environmental Health,Hackney Carriage/Private Hire,Other Equipment/Materials,20/03/20,Supplies & Services,105031,NEIGHBOURHOODS,,1031
906.86,British Gas Business,Transformation,Property Services,The Point,Electricity,14/01/20,Premises Related Expenditure,103191,TRANSFORMATION,,1886
905.82,Bottomline Technologies Limited,Finance & Corporate Services,Ict,It Rechargeable Costs,Maintenance Contracts - S&S,30/01/20,Supplies & Services,103623,TRANSFORMATION,,4722
900.00,Kch Garden Sq Barristers,Transformation,Legal,Legal Services,Other Income,31/03/20,Income,105531,FINANCE & CORPORATE SERVICES,,4701
896.40,Reach Publishing Services Limited,Communities,Planning & Growth,Development Control,Advertising,24/02/20,Supplies & Services,104206,COMMUNITIES,,1161
894.95,Nottingham City Council,Neighbourhoods,Waste & Fleet Management,Eastcroft Depot,Olas - Nottm City Council,16/03/20,Third Party Payments,105068,NEIGHBOURHOODS,,4002
894.50,Cornerstone Barristers,Neighbourhoods,Environmental Health,Community Safety,Other Miscellaneous Expenses,03/03/20,Supplies & Services,104601,NEIGHBOURHOODS,,1598
885.80,Nottingham City Council,Transformation,Human Resources,Corporate Training,Training Expenses,24/02/20,Employee Related Expenditure,104504,TRANSFORMATION,,4893
880.00,A R Signs Ltd,Finance & Corporate Services,"Performance, Repn & Comms",Performance And Reputation,External Printing,14/02/20,Supplies & Services,103831,FINANCE & CORPORATE SERVICES,,4710
872.40,Streetwise Environmental Ltd           ,Communities,Community Development,Community Development,Other Miscellaneous Expenses,27/03/20,Supplies & Services,105367,COMMUNITIES,,1581
869.36,Complete Mailings,Neighbourhoods,Waste & Fleet Management,Waste Collection,Contractors-Supplies & Servs,03/03/20,Supplies & Services,104722,NEIGHBOURHOODS,,8403
859.77,Service Level Management Ltd,Transformation,Bsu,Central Mail,Postages,03/02/20,Supplies & Services,103163,TRANSFORMATION,,4871
850.00,Aac Air Conditioning Ltd,Transformation,Property Services,New Offices - Cotgrave,Service Maintenance Contracts,25/03/20,Premises Related Expenditure,105343,TRANSFORMATION,,4798
840.00,Tunstall Telecom,Neighbourhoods,Strategic Housing,Home Alarms,Other Equipment/Materials,05/02/20,Supplies & Services,103730,NEIGHBOURHOODS,,1137
834.69,Acs Business Supplies,Finance & Corporate Services,Ict,It Rechargeable Costs,Other Peripherals,06/02/20,Supplies & Services,102686,TRANSFORMATION,,4722
822.00,Assoc Of Electoral Admin,Finance & Corporate Services,Democratic Services,Electoral Registration,Conferences - Employees,17/01/20,Supplies & Services,103322,FINANCE & CORPORATE SERVICES,,1026
810.00,Hbinfo Ltd,Finance & Corporate Services,Revenues & Benefits,Housing Benefits Admin.,Legal & Professional Services,14/02/20,Supplies & Services,103959,FINANCE & CORPORATE SERVICES,,1140
807.02,Abacus Lighting Limited,Communities,Community Development,Gresham,Planned Maintenance Recharge,23/01/20,Supplies & Services,103154,COMMUNITIES,,8950
800.00,Rural Retailers Ltd,Transformation,Economic Regeneration,Bingham Market Stalls,Legal & Professional Services,30/01/20,Supplies & Services,103830,TRANSFORMATION,,1880
800.00,Rural Retailers Ltd,Transformation,Economic Regeneration,Bingham Market Stalls,Legal & Professional Services,16/03/20,Supplies & Services,105199,TRANSFORMATION,,1880
799.00,Maltby & Company,Transformation,Property Services,Street Nameplates & Pub. Signs,Contractors-Supplies & Servs,17/02/20,Supplies & Services,104185,TRANSFORMATION,,1920
796.80,Reach Publishing Services Limited,Communities,Planning & Growth,Development Control,Advertising,09/01/20,Supplies & Services,103150,COMMUNITIES,,1161
796.80,Reach Publishing Services Limited,Communities,Planning & Growth,Development Control,Advertising,27/03/20,Supplies & Services,105372,COMMUNITIES,,1161
796.80,Reach Publishing Services Limited,Communities,Planning & Growth,Development Control,Advertising,31/03/20,Supplies & Services,105506,COMMUNITIES,,1161
795.00,Lg Futures,Finance & Corporate Services,Financial Services,Financial Services,Subscriptions,03/03/20,Supplies & Services,104633,FINANCE & CORPORATE SERVICES,,4705
791.50,Service Level Management Ltd,Transformation,Bsu,Central Mail,Postages,27/03/20,Supplies & Services,104923,TRANSFORMATION,,4871
787.70,Streetwise Environmental Ltd           ,Neighbourhoods,Environmental Health,Work In Default,Other Miscellaneous Expenses,06/01/20,Supplies & Services,102638,NEIGHBOURHOODS,,1066
787.48,Service Level Management Ltd,Transformation,Bsu,Central Mail,Postages,27/03/20,Supplies & Services,104922,TRANSFORMATION,,4871
786.00,Nla Media Access Limited,Transformation,Legal,Legal Services,Licences,11/03/20,Supplies & Services,104858,FINANCE & CORPORATE SERVICES,,4701
785.71,The South Wolds Academy And Sixth Form,Neighbourhoods,Leisure Contracts & Car Parks,Leisure Management Contract,Electricity,11/02/20,Premises Related Expenditure,103727,FINANCE & CORPORATE SERVICES,,1795
782.00,Geldards Llp,Transformation,Economic Regeneration,Economic Development,Legal & Professional Services,13/02/20,Supplies & Services,103990,TRANSFORMATION,,1887
782.00,Nottingham City Council,Neighbourhoods,Waste & Fleet Management,Eastcroft Depot,Olas - Nottm City Council,23/01/20,Third Party Payments,103645,NEIGHBOURHOODS,,4002
780.75,Civica Uk Ltd,Finance & Corporate Services,Democratic Services,Borough Council Elections,Training Expenses,11/03/20,Employee Related Expenditure,104589,FINANCE & CORPORATE SERVICES,,1021
780.00,Dotted Eyes Ltd,Communities,Planning Policy,Development Plans,Subscriptions,27/02/20,Supplies & Services,104490,COMMUNITIES,,1232
777.86,Electoral Reform Services,Finance & Corporate Services,Democratic Services,Electoral Registration,External Printing,14/02/20,Supplies & Services,104160,FINANCE & CORPORATE SERVICES,,1026
776.26,Vivid Resourcing (G2v Recruitment Group Ltd),Neighbourhoods,Environmental Health,Pollution Control,Legal & Professional Services,27/03/20,Supplies & Services,105151,NEIGHBOURHOODS,,1050
776.00,A R Signs Ltd,Finance & Corporate Services,"Performance, Repn & Comms",Performance And Reputation,External Printing,14/02/20,Supplies & Services,103957,FINANCE & CORPORATE SERVICES,,4710
774.76,Service Level Management Ltd,Transformation,Bsu,Central Mail,Postages,16/03/20,Supplies & Services,104507,TRANSFORMATION,,4871
773.16,Eon,Transformation,Property Services,Unit 10 Moorbridge,Electricity,18/03/20,Premises Related Expenditure,104962,NEIGHBOURHOODS,,4788
772.48,Abacus Lighting Limited,Neighbourhoods,Leisure Contracts & Car Parks,Leisure Management Contract,Responsive Works - Buildings,23/01/20,Premises Related Expenditure,103153,FINANCE & CORPORATE SERVICES,,1795
770.00,Temperature Control Limited,Transformation,Property Services,Arena Civic Centre,Planned Maintenance Recharge,30/01/20,Supplies & Services,103535,TRANSFORMATION,,4718
762.03,The South Wolds Academy And Sixth Form,Neighbourhoods,Leisure Contracts & Car Parks,Leisure Management Contract,Electricity,24/02/20,Premises Related Expenditure,104170,FINANCE & CORPORATE SERVICES,,1795
755.14,Print Image Network Ltd,Finance & Corporate Services,Democratic Services,Electoral Registration,External Printing,14/02/20,Supplies & Services,104105,FINANCE & CORPORATE SERVICES,,1026
751.19,Vivid Resourcing (G2v Recruitment Group Ltd),Neighbourhoods,Environmental Health,Pollution Control,Legal & Professional Services,27/03/20,Supplies & Services,105402,NEIGHBOURHOODS,,1050
750.00,Food By Farah Ltd,Communities,Community Development,Health Development,Projects & Activities,27/01/20,Supplies & Services,103428,COMMUNITIES,,1058
750.00,South Notts Fabrications Ltd,Communities,Community Development,Parks & Playing Fields-Gen,Planned Maintenance Recharge,27/01/20,Supplies & Services,103265,COMMUNITIES,,8910
750.00,The Sheldon Field,Communities,Community Development,Environmental Promotion,Grants,27/03/20,Supplies & Services,105404,COMMUNITIES,,1590
750.00,The Tudor Lodge Hotel,Neighbourhoods,Strategic Housing,Homeless B&B,Housing-Emergency Accommodn,03/03/20,Supplies & Services,104457,NEIGHBOURHOODS,,1110
749.40,Tunstall Telecom,Neighbourhoods,Strategic Housing,Home Alarms,Other Equipment/Materials,27/03/20,Supplies & Services,105181,NEIGHBOURHOODS,,1137
745.77,Xerox (Uk) Limited,Finance & Corporate Services,Ict,Photocopiers,Rental & Copy Charges,21/01/20,Supplies & Services,103287,TRANSFORMATION,,5017
744.00,Freeths Llp,Capital Expenditure,Transformation & Innovation,Cotgrave Phase 2,Legal & Professional Services,03/03/20,Supplies & Services,104235,CAPITAL,,387
743.38,Maltby & Company,Communities,Community Development,West Park,Planned Maintenance Recharge,24/02/20,Supplies & Services,103744,COMMUNITIES,,8994
735.00,A R Signs Ltd,Finance & Corporate Services,"Performance, Repn & Comms",Performance And Reputation,External Printing,27/01/20,Supplies & Services,103344,FINANCE & CORPORATE SERVICES,,4710
735.00,Medigold Health Consultancy Ltd,Transformation,Human Resources,Human Resources,Occupational Health,23/01/20,Employee Related Expenditure,103210,TRANSFORMATION,,4709
734.20,Ccs Media,Finance & Corporate Services,Ict,It Rechargeable Costs,Other Peripherals,27/03/20,Supplies & Services,105492,TRANSFORMATION,,4722
730.00,Quantum Fire & Security Ltd,Neighbourhoods,Leisure Contracts & Car Parks,Leisure Management Contract,Responsive Works - Buildings,17/01/20,Premises Related Expenditure,103036,FINANCE & CORPORATE SERVICES,,1795
729.64,Eon,Transformation,Property Services,New Offices - Cotgrave,Electricity,17/01/20,Premises Related Expenditure,103289,TRANSFORMATION,,4798
728.95,Ninesharp Ltd,Finance & Corporate Services,Ict,It,Agency Staff,14/01/20,Employee Related Expenditure,102984,TRANSFORMATION,,4703
728.95,Ninesharp Ltd,Finance & Corporate Services,Ict,It,Agency Staff,27/02/20,Employee Related Expenditure,104219,TRANSFORMATION,,4703
725.12,The South Wolds Academy And Sixth Form,Neighbourhoods,Leisure Contracts & Car Parks,Leisure Management Contract,Electricity,11/02/20,Premises Related Expenditure,103728,FINANCE & CORPORATE SERVICES,,1795
725.00,Baker Consultants Ltd,Communities,Planning & Growth,Development Control,Legal & Professional Services,20/03/20,Supplies & Services,104743,COMMUNITIES,,1161
725.00,The Green Line Conservation Group,Communities,Community Development,Environmental Promotion,Grants,22/01/20,Supplies & Services,102722,COMMUNITIES,,1590
720.43,Lyreco,Communities,Community Development,Facilities Team,Cleaning Equipment/Materials,27/02/20,Supplies & Services,103899,COMMUNITIES,,4714
713.40,Sherwood Farms Ltd,Neighbourhoods,Waste & Fleet Management,Glass Recycling & Bring Sites,Other Equipment/Materials,24/02/20,Supplies & Services,104181,NEIGHBOURHOODS,,8407
710.00,Trent Valley Gas Engineers Limited,Transformation,Property Services,The Point,Responsive Works - Buildings,08/01/20,Premises Related Expenditure,102843,TRANSFORMATION,,1886
702.37,Royal Mail Group Ltd,Finance & Corporate Services,Democratic Services,Borough Council Elections,Postages,03/03/20,Supplies & Services,104487,FINANCE & CORPORATE SERVICES,,1021
702.00,City Hygiene Services Ltd,Communities,Community Development,Facilities Team,Laundry,08/01/20,Supplies & Services,101995,COMMUNITIES,,4714
700.00,The Tudor Lodge Hotel,Neighbourhoods,Strategic Housing,Homeless B&B,Housing-Emergency Accommodn,06/02/20,Supplies & Services,103805,NEIGHBOURHOODS,,1110
700.00,The Tudor Lodge Hotel,Neighbourhoods,Strategic Housing,Homeless B&B,Housing-Emergency Accommodn,11/02/20,Supplies & Services,103987,NEIGHBOURHOODS,,1110
700.00,The Tudor Lodge Hotel,Neighbourhoods,Strategic Housing,Homeless B&B,Housing-Emergency Accommodn,24/02/20,Supplies & Services,104220,NEIGHBOURHOODS,,1110
700.00,The Tudor Lodge Hotel,Neighbourhoods,Strategic Housing,Homeless B&B,Housing-Emergency Accommodn,03/03/20,Supplies & Services,104459,NEIGHBOURHOODS,,1110
700.00,The Tudor Lodge Hotel,Neighbourhoods,Strategic Housing,Homeless B&B,Housing-Emergency Accommodn,03/03/20,Supplies & Services,104625,NEIGHBOURHOODS,,1110
700.00,The Tudor Lodge Hotel,Neighbourhoods,Strategic Housing,Homeless B&B,Housing-Emergency Accommodn,11/03/20,Supplies & Services,104931,NEIGHBOURHOODS,,1110
700.00,The Tudor Lodge Hotel,Neighbourhoods,Strategic Housing,Homeless B&B,Housing-Emergency Accommodn,18/03/20,Supplies & Services,105261,NEIGHBOURHOODS,,1110
700.00,The Tudor Lodge Hotel,Neighbourhoods,Strategic Housing,Homeless B&B,Housing-Emergency Accommodn,27/03/20,Supplies & Services,105038,NEIGHBOURHOODS,,1110
700.00,The Tudor Lodge Hotel,Neighbourhoods,Strategic Housing,Homeless B&B,Housing-Emergency Accommodn,27/03/20,Supplies & Services,105512,NEIGHBOURHOODS,,1110
699.00,Innovative Safety Systems Limited,Neighbourhoods,Waste & Fleet Management,Waste Collection,Other Equipment/Materials,25/03/20,Supplies & Services,105183,NEIGHBOURHOODS,,8403
697.20,Reach Publishing Services Limited,Communities,Planning & Growth,Development Control,Advertising,09/01/20,Supplies & Services,103151,COMMUNITIES,,1161
695.00,A R Signs Ltd,Capital Expenditure,Neighbourhoods,Clc Changing Village Refurb,Contractors-Third Party,06/01/20,Third Party Payments,102838,CAPITAL,,402
693.63,The South Wolds Academy And Sixth Form,Neighbourhoods,Leisure Contracts & Car Parks,Leisure Management Contract,Electricity,20/03/20,Premises Related Expenditure,105282,FINANCE & CORPORATE SERVICES,,1795
692.36,British Gas Business,Transformation,Property Services,The Point,Electricity,17/02/20,Premises Related Expenditure,104168,TRANSFORMATION,,1886
690.42,Friends Of The Hook,Communities,Community Development,Environmental Promotion,Grants,19/02/20,Supplies & Services,104236,COMMUNITIES,,1590
690.15,Eon,Transformation,Property Services,Unit 10 Moorbridge,Electricity,17/02/20,Premises Related Expenditure,104113,NEIGHBOURHOODS,,4788
690.00,Fred Brown Car Repairs Limited,Neighbourhoods,Environmental Health,Hackney Carriage/Private Hire,Contractors-Transport,09/01/20,Transport Related Expenditure,102988,NEIGHBOURHOODS,,1031
690.00,Link Magazines Ltd,Transformation,Economic Regeneration,Bingham Market Stalls,Legal & Professional Services,25/03/20,Supplies & Services,105362,TRANSFORMATION,,1880
688.44,Streetwise Environmental Ltd           ,Transformation,Property Services,Open Spaces & Footpaths,Responsive Works - Buildings,03/03/20,Premises Related Expenditure,104581,TRANSFORMATION,,1290
686.65,Joe'S (Uk) Ltd,Transformation,Property Services,The Point,Responsive Works - Buildings,11/02/20,Premises Related Expenditure,103808,TRANSFORMATION,,1886
684.60,Cotgrave Town Council,Transformation,Economic Regeneration,Cotgrave Precinct,Grounds Maintenance,09/01/20,Premises Related Expenditure,102999,TRANSFORMATION,,1885
678.98,Mpc Services Uk Limited,Communities,Community Development,West Park,Responsive Works-Fixed Plant,16/03/20,Premises Related Expenditure,104969,COMMUNITIES,,8994
675.00,Crimson Fire Risk Services Ltd,Capital Expenditure,Transformation & Innovation,Rccc Premises 19/20,Contractors-Third Party,14/02/20,Third Party Payments,103983,CAPITAL,,376
675.00,Wilford Lane Garage & Autocentre,Neighbourhoods,Environmental Health,Hackney Carriage/Private Hire,Contractors-Transport,15/01/20,Transport Related Expenditure,103270,NEIGHBOURHOODS,,1031
672.00,Phoenix Software,Finance & Corporate Services,Ict,It Rechargeable Costs,Software,03/02/20,Supplies & Services,103469,TRANSFORMATION,,4722
659.56,Eon,Transformation,Property Services,Unit 10 Moorbridge,Electricity,14/01/20,Premises Related Expenditure,103136,NEIGHBOURHOODS,,4788
655.56,Nottinghamshire County Council,Neighbourhoods,Leisure Contracts & Car Parks,Leisure Management Contract,Grounds Maintenance,09/01/20,Premises Related Expenditure,102996,FINANCE & CORPORATE SERVICES,,1795
655.56,Nottinghamshire County Council,Neighbourhoods,Leisure Contracts & Car Parks,Leisure Management Contract,Grounds Maintenance,06/02/20,Premises Related Expenditure,103960,FINANCE & CORPORATE SERVICES,,1795
655.56,Nottinghamshire County Council,Neighbourhoods,Leisure Contracts & Car Parks,Leisure Management Contract,Grounds Maintenance,16/03/20,Premises Related Expenditure,104755,FINANCE & CORPORATE SERVICES,,1795
651.30,Ppl Prs Ltd,Communities,Community Development,Sir Julien Cahn Pavilion,Licences,24/02/20,Supplies & Services,103817,COMMUNITIES,,8993
650.00,Bright Space Solutions Ltd,Transformation,Human Resources,Corporate Training,Training Expenses,11/03/20,Employee Related Expenditure,105032,TRANSFORMATION,,4893
650.00,Hex Productions,Finance & Corporate Services,"Performance, Repn & Comms",Performance And Reputation,Legal & Professional Services,09/01/20,Supplies & Services,103001,FINANCE & CORPORATE SERVICES,,4710
650.00,Hex Productions,Finance & Corporate Services,"Performance, Repn & Comms",Performance And Reputation,Legal & Professional Services,14/02/20,Supplies & Services,103896,FINANCE & CORPORATE SERVICES,,4710
650.00,Hex Productions,Finance & Corporate Services,"Performance, Repn & Comms",Performance And Reputation,Legal & Professional Services,05/03/20,Supplies & Services,104740,FINANCE & CORPORATE SERVICES,,4710
647.40,Reach Publishing Services Limited,Communities,Planning & Growth,Development Control,Advertising,19/02/20,Supplies & Services,104464,COMMUNITIES,,1161
647.40,Reach Publishing Services Limited,Communities,Planning & Growth,Development Control,Advertising,11/03/20,Supplies & Services,104852,COMMUNITIES,,1161
645.00,Print Image Network Ltd,Finance & Corporate Services,Democratic Services,Borough Council Elections,External Printing,03/03/20,Supplies & Services,104404,FINANCE & CORPORATE SERVICES,,1021
644.00,Midland Signs Leicester Ltd,Transformation,Property Services,Street Nameplates & Pub. Signs,Contractors-Supplies & Servs,27/02/20,Supplies & Services,104395,TRANSFORMATION,,1920
643.25,Thorn Baker Limited,Neighbourhoods,Waste & Fleet Management,Waste Collection,Agency Staff,06/03/20,Employee Related Expenditure,104867,NEIGHBOURHOODS,,8403
640.39,Eon,Transformation,Property Services,Castle Donington,Gas,30/01/20,Premises Related Expenditure,103750,NEIGHBOURHOODS,,1863
635.01,Vip System Limited,Neighbourhoods,Environmental Health,Hackney Carriage/Private Hire,Other Equipment/Materials,16/03/20,Supplies & Services,105012,NEIGHBOURHOODS,,1031
634.71,The South Wolds Academy And Sixth Form,Neighbourhoods,Leisure Contracts & Car Parks,Leisure Management Contract,Water Charges,03/03/20,Premises Related Expenditure,104639,FINANCE & CORPORATE SERVICES,,1795
626.84,British Gas Business,Transformation,Property Services,The Point,Electricity,27/03/20,Premises Related Expenditure,105174,TRANSFORMATION,,1886
625.00,A R Signs Ltd,Finance & Corporate Services,"Performance, Repn & Comms",Performance And Reputation,External Printing,20/03/20,Supplies & Services,105071,FINANCE & CORPORATE SERVICES,,4710
625.00,The Becket School,Communities,Community Development,Community Development,Projects & Activities,03/02/20,Supplies & Services,103564,COMMUNITIES,,1581
623.70,Adt Fire And Security Plc,Neighbourhoods,Strategic Housing,Hostel Hound Lodge,Service Maintenance Contracts,03/02/20,Premises Related Expenditure,103472,NEIGHBOURHOODS,,1111
622.67,Eon,Transformation,Economic Regeneration,Cotgrave Hub/Msc - Main Bldg,Electricity,17/01/20,Premises Related Expenditure,103288,TRANSFORMATION,,1876
621.02,Karter Thomas Limited,Neighbourhoods,Strategic Housing,Strategic Housing Ha,Agency Staff,03/02/20,Employee Related Expenditure,103427,NEIGHBOURHOODS,,4789
620.00,Thorn Baker Limited,Neighbourhoods,Waste & Fleet Management,Waste Collection,Agency Staff,16/03/20,Employee Related Expenditure,105059,NEIGHBOURHOODS,,8403
620.00,Thorn Baker Limited,Neighbourhoods,Waste & Fleet Management,Waste Collection,Agency Staff,27/03/20,Employee Related Expenditure,105536,NEIGHBOURHOODS,,8403
610.97,Corona Energy Retail 3 Ltd,Neighbourhoods,Waste & Fleet Management,Abbey Road Depot,Gas,27/03/20,Premises Related Expenditure,105470,NEIGHBOURHOODS,,4001
608.00,Browne Jacobson,Capital Expenditure,Transformation & Innovation,Cotgrave Phase 2,Legal & Professional Services,27/02/20,Supplies & Services,104323,CAPITAL,,387
604.64,Upgrade Options Limited,Capital Expenditure,Finance & Corporate,Ict Replacement Programme,Computer Hardware,14/02/20,Supplies & Services,103984,CAPITAL,,592
603.95,Eon,Transformation,Property Services,New Offices - Cotgrave,Electricity,17/02/20,Premises Related Expenditure,104112,TRANSFORMATION,,4798
601.25,Sellick Partnership Limited,Transformation,Legal,Legal Services,Agency Staff,09/01/20,Employee Related Expenditure,103102,FINANCE & CORPORATE SERVICES,,4701
601.00,Fg Library Products Ltd,Capital Expenditure,Transformation & Innovation,Rccc Premises 19/20,Contractors-Supplies & Servs,03/03/20,Supplies & Services,104383,CAPITAL,,376
600.00,1st Ruddington Scout Group,Finance & Corporate Services,Democratic Services,Members Services,Grants,27/03/20,Supplies & Services,105166,FINANCE & CORPORATE SERVICES,,1000
600.00,Ashfield District Council,Transformation,Human Resources,Human Resources,Subscriptions,14/02/20,Supplies & Services,104192,TRANSFORMATION,,4709
600.00,David Hughes Agricultural Consultancy Ltd,Communities,Planning & Growth,Development Control,Legal & Professional Services,20/03/20,Supplies & Services,104960,COMMUNITIES,,1161
600.00,The Tudor Lodge Hotel,Neighbourhoods,Strategic Housing,Homeless B&B,Housing-Emergency Accommodn,03/02/20,Supplies & Services,103615,NEIGHBOURHOODS,,1110
597.60,Reach Publishing Services Limited,Communities,Planning & Growth,Development Control,Advertising,30/01/20,Supplies & Services,103626,COMMUNITIES,,1161
596.25,Arden Winch & Co Ltd,Neighbourhoods,Waste & Fleet Management,Eastcroft Depot,Other Equipment/Materials,18/03/20,Supplies & Services,104629,NEIGHBOURHOODS,,4002
589.95,The South Wolds Academy And Sixth Form,Neighbourhoods,Leisure Contracts & Car Parks,Leisure Management Contract,Water Charges,20/03/20,Premises Related Expenditure,105280,FINANCE & CORPORATE SERVICES,,1795
586.00,Direct Trade Bags,Transformation,Economic Regeneration,Bingham Market Stalls,Legal & Professional Services,15/01/20,Supplies & Services,103298,TRANSFORMATION,,1880
583.50,Curlew Corporate Clothing Ltd,Transformation,Customer Services,Customer Services,Protective Clothing/Uniforms,09/01/20,Supplies & Services,103104,TRANSFORMATION,,4807
579.40,Lyreco,Communities,Community Development,Facilities Team,Cleaning Equipment/Materials,23/01/20,Supplies & Services,103006,COMMUNITIES,,4714
578.64,Water Plus,Transformation,Economic Regeneration,Bingham Market Stalls,Water Charges,14/01/20,Premises Related Expenditure,103212,TRANSFORMATION,,1880
577.79,Karter Thomas Limited,Neighbourhoods,Strategic Housing,Strategic Housing Ha,Agency Staff,11/02/20,Employee Related Expenditure,102685,NEIGHBOURHOODS,,4789
575.00,C A Wood T/A Orange Wood Design,Finance & Corporate Services,"Performance, Repn & Comms",Performance And Reputation,Legal & Professional Services,27/02/20,Supplies & Services,104599,FINANCE & CORPORATE SERVICES,,4710
572.60,Quantum Fire & Security Ltd,Transformation,Property Services,The Point,Responsive Works - Buildings,03/02/20,Premises Related Expenditure,103429,TRANSFORMATION,,1886
571.00,Granicus Llc,Finance & Corporate Services,"Performance, Repn & Comms",Performance And Reputation,Legal & Professional Services,23/01/20,Supplies & Services,103155,FINANCE & CORPORATE SERVICES,,4710
571.00,Granicus Llc,Finance & Corporate Services,"Performance, Repn & Comms",Performance And Reputation,Legal & Professional Services,24/02/20,Supplies & Services,104198,FINANCE & CORPORATE SERVICES,,4710
571.00,Granicus Llc,Finance & Corporate Services,"Performance, Repn & Comms",Performance And Reputation,Legal & Professional Services,20/03/20,Supplies & Services,105033,FINANCE & CORPORATE SERVICES,,4710
566.88,Xerox (Uk) Limited,Finance & Corporate Services,Ict,Photocopiers,Rental & Copy Charges,21/01/20,Supplies & Services,103284,TRANSFORMATION,,5017
564.00,Jne Security Ltd,Neighbourhoods,Environmental Health,Community Safety,Projects & Activities,18/03/20,Supplies & Services,105036,NEIGHBOURHOODS,,1598
562.50,Wilford Lane Garage & Autocentre,Neighbourhoods,Environmental Health,Hackney Carriage/Private Hire,Contractors-Transport,11/03/20,Transport Related Expenditure,104854,NEIGHBOURHOODS,,1031
560.25,Reach Publishing Services Limited,Communities,Planning & Growth,Development Control,Advertising,06/01/20,Supplies & Services,102687,COMMUNITIES,,1161
558.99,Ccs Media,Capital Expenditure,Finance & Corporate,Technical Infrastructure,Computer Hardware,06/01/20,Supplies & Services,102688,CAPITAL,,603
555.98,Ninesharp Ltd,Finance & Corporate Services,Ict,It,Agency Staff,14/02/20,Employee Related Expenditure,103996,TRANSFORMATION,,4703
550.00,Bottomline Technologies Limited,Finance & Corporate Services,Ict,It Rechargeable Costs,Maintenance Contracts - S&S,24/02/20,Supplies & Services,104382,TRANSFORMATION,,4722
550.00,Dta Electrical,Transformation,Property Services,The Point,Planned Maintenance Recharge,27/03/20,Supplies & Services,104750,TRANSFORMATION,,1886
550.00,Red Umbrella,Transformation,Human Resources,Corporate Training,Training Expenses,20/03/20,Employee Related Expenditure,105182,TRANSFORMATION,,4893
550.00,The Tudor Lodge Hotel,Neighbourhoods,Strategic Housing,Homeless B&B,Housing-Emergency Accommodn,17/01/20,Supplies & Services,103103,NEIGHBOURHOODS,,1110
547.80,Reach Publishing Services Limited,Communities,Planning & Growth,Development Control,Advertising,18/03/20,Supplies & Services,105073,COMMUNITIES,,1161
547.80,Reach Publishing Services Limited,Neighbourhoods,Environmental Health,Licences - General,Legal & Professional Services,30/01/20,Supplies & Services,103807,NEIGHBOURHOODS,,1029
544.11,Severn Trent Water,Neighbourhoods,Strategic Housing,Hostel Hound Lodge,Water Charges,17/01/20,Premises Related Expenditure,103325,NEIGHBOURHOODS,,1111
544.00,A R Signs Ltd,Finance & Corporate Services,"Performance, Repn & Comms",Performance And Reputation,External Printing,27/03/20,Supplies & Services,105265,FINANCE & CORPORATE SERVICES,,4710
539.45,Karter Thomas Limited,Neighbourhoods,Strategic Housing,Strategic Housing Ha,Agency Staff,03/02/20,Employee Related Expenditure,103617,NEIGHBOURHOODS,,4789
537.00,Radcliffe On Trent Parish Council,Finance & Corporate Services,Democratic Services,Members Services,Grants,17/02/20,Supplies & Services,104212,FINANCE & CORPORATE SERVICES,,1000
534.69,Lantern Lane Primary School,Communities,Community Development,Health Development,Projects & Activities,05/02/20,Supplies & Services,103958,COMMUNITIES,,1058
533.00,Churchill Specialist Contracting Ltd,Transformation,Property Services,New Offices - Cotgrave,Responsive Works - Buildings,27/01/20,Premises Related Expenditure,103566,TRANSFORMATION,,4798
531.41,Xerox (Uk) Limited,Finance & Corporate Services,Ict,Photocopiers,Rental & Copy Charges,21/01/20,Supplies & Services,103285,TRANSFORMATION,,5017
529.00,A R Signs Ltd,Finance & Corporate Services,"Performance, Repn & Comms",Performance And Reputation,External Printing,27/01/20,Supplies & Services,103346,FINANCE & CORPORATE SERVICES,,4710
525.00,Solace Group Ltd,Finance & Corporate Services,Emt,Executive Management Team,Conferences - Employees,19/02/20,Supplies & Services,104101,FINANCE & CORPORATE SERVICES,,4721
522.95,Water Plus,Transformation,Economic Regeneration,Cotgrave Precinct,Water Charges,14/01/20,Premises Related Expenditure,97589,TRANSFORMATION,,1885
518.91,Ninesharp Ltd,Finance & Corporate Services,Ict,It,Agency Staff,05/03/20,Employee Related Expenditure,104442,TRANSFORMATION,,4703
518.00,Sellick Partnership Limited,Transformation,Legal,Legal Services,Agency Staff,23/01/20,Employee Related Expenditure,103538,FINANCE & CORPORATE SERVICES,,4701
509.73,Elite Blinds Nottingham Ltd,Transformation,Customer Services,Customer Services,Planned Maintenance Recharge,03/03/20,Supplies & Services,104489,TRANSFORMATION,,4807
507.65,Eon,Transformation,Property Services,Unit 10 Moorbridge,Gas,14/01/20,Premises Related Expenditure,103134,NEIGHBOURHOODS,,4788
503.25,Castle Water Limited,Neighbourhoods,Leisure Contracts & Car Parks,Car Parks,Water Charges,23/01/20,Premises Related Expenditure,103439,FINANCE & CORPORATE SERVICES,,1900
503.25,Castle Water Limited,Neighbourhoods,Leisure Contracts & Car Parks,Car Parks,Water Charges,23/01/20,Premises Related Expenditure,103441,FINANCE & CORPORATE SERVICES,,1900
503.25,Castle Water Limited,Neighbourhoods,Leisure Contracts & Car Parks,Car Parks,Water Charges,23/01/20,Premises Related Expenditure,103444,FINANCE & CORPORATE SERVICES,,1900
495.00,Mallard Consultancy Ltd,Neighbourhoods,Environmental Health,Housing Standards,Legal & Professional Services,03/02/20,Supplies & Services,103548,NEIGHBOURHOODS,,1129
495.00,Mallard Consultancy Ltd,Neighbourhoods,Environmental Health,Public Health,Legal & Professional Services,03/02/20,Supplies & Services,103548,NEIGHBOURHOODS,,1127
485.97,Ppl Prs Ltd,Communities,Community Development,Lutterell Hall,Licences,24/02/20,Supplies & Services,103817,COMMUNITIES,,8990
461.72,Ppl Prs Ltd,Communities,Community Development,Gamston Community Hall,Licences,24/02/20,Supplies & Services,103817,COMMUNITIES,,8992
460.00,Access Doors Ltd,Communities,Community Development,West Park,Service Maintenance Contracts,18/03/20,Premises Related Expenditure,104927,COMMUNITIES,,8994
450.00,Blade Runners Commercial Ltd,Transformation,Property Services,The Point,Contract Cleaning,14/02/20,Premises Related Expenditure,104055,TRANSFORMATION,,1886
448.20,Reach Publishing Services Limited,Communities,Planning & Growth,Development Control,Advertising,14/02/20,Supplies & Services,104005,COMMUNITIES,,1161
448.20,Reach Publishing Services Limited,Communities,Planning & Growth,Development Control,Advertising,03/03/20,Supplies & Services,104630,COMMUNITIES,,1161
377.20,Ppl Prs Ltd,Communities,Community Development,West Park,Licences,24/02/20,Supplies & Services,103817,COMMUNITIES,,8994
365.50,Clearwater Technology Ltd,Transformation,Property Services,Arena Civic Centre,Service Maintenance Contracts,27/03/20,Premises Related Expenditure,105357,TRANSFORMATION,,4718
350.00,Dta Electrical,Transformation,Property Services,Parish Run Pub Conveniences,Planned Maintenance Recharge,27/01/20,Supplies & Services,103629,TRANSFORMATION,,1072
335.00,Access Doors Ltd,Communities,Community Development,Rushcliffe Country Park,Service Maintenance Contracts,18/03/20,Premises Related Expenditure,104927,COMMUNITIES,,1375
320.80,Em Publishing,Neighbourhoods,Environmental Health,Pollution Control,Subscriptions,18/03/20,Supplies & Services,104941,NEIGHBOURHOODS,,1050
298.80,Reach Publishing Services Limited,Communities,Planning & Growth,Conservation,Advertising,14/02/20,Supplies & Services,104005,COMMUNITIES,,1171
260.00,Access Doors Ltd,Communities,Community Development,Gresham,Service Maintenance Contracts,18/03/20,Premises Related Expenditure,104927,COMMUNITIES,,8950
250.00,Blade Runners Commercial Ltd,Transformation,Property Services,Arena Civic Centre,Contract Cleaning,14/02/20,Premises Related Expenditure,104055,TRANSFORMATION,,4718
250.00,Dta Electrical,Transformation,Property Services,The Point,Responsive Works - Buildings,27/03/20,Premises Related Expenditure,104750,TRANSFORMATION,,1886
249.00,Clearwater Technology Ltd,Communities,Community Development,Gresham,Service Maintenance Contracts,27/03/20,Premises Related Expenditure,105357,COMMUNITIES,,8950
235.20,Em Publishing,Neighbourhoods,Environmental Health,Noise Control,Subscriptions,18/03/20,Supplies & Services,104941,NEIGHBOURHOODS,,1060
199.20,Reach Publishing Services Limited,Communities,Planning & Growth,Conservation,Advertising,30/01/20,Supplies & Services,103626,COMMUNITIES,,1171
186.75,Reach Publishing Services Limited,Communities,Planning & Growth,Conservation,Advertising,06/01/20,Supplies & Services,102687,COMMUNITIES,,1171
182.17,Clearwater Technology Ltd,Transformation,Property Services,Arena Civic Centre,Service Maintenance Contracts,05/03/20,Premises Related Expenditure,104010,TRANSFORMATION,,4718
161.84,Reach Publishing Services Limited,Communities,Planning & Growth,Conservation,Advertising,09/01/20,Supplies & Services,103010,COMMUNITIES,,1171
159.84,Clearwater Technology Ltd,Communities,Community Development,Alford Road,Service Maintenance Contracts,27/03/20,Premises Related Expenditure,105357,COMMUNITIES,,8940
159.84,Clearwater Technology Ltd,Neighbourhoods,Strategic Housing,Hostel Hound Lodge,Service Maintenance Contracts,27/03/20,Premises Related Expenditure,105357,NEIGHBOURHOODS,,1111
149.40,Reach Publishing Services Limited,Communities,Planning & Growth,Conservation,Advertising,03/03/20,Supplies & Services,104630,COMMUNITIES,,1171
144.83,Clearwater Technology Ltd,Communities,Community Development,West Park,Service Maintenance Contracts,27/03/20,Premises Related Expenditure,105357,COMMUNITIES,,8994
135.00,Access Doors Ltd,Communities,Community Development,Alford Road,Service Maintenance Contracts,18/03/20,Premises Related Expenditure,104927,COMMUNITIES,,8940
125.06,Clearwater Technology Ltd,Communities,Community Development,Gresham,Service Maintenance Contracts,05/03/20,Premises Related Expenditure,104010,COMMUNITIES,,8950
115.17,Clearwater Technology Ltd,Communities,Community Development,Lutterell Hall,Service Maintenance Contracts,27/03/20,Premises Related Expenditure,105357,COMMUNITIES,,8990
110.00,Access Doors Ltd,Communities,Community Development,Lutterell Hall,Service Maintenance Contracts,18/03/20,Premises Related Expenditure,104927,COMMUNITIES,,8990
107.33,Clearwater Technology Ltd,Communities,Community Development,Rushcliffe Country Park,Service Maintenance Contracts,27/03/20,Premises Related Expenditure,105357,COMMUNITIES,,1375
100.00,Dta Electrical,Transformation,Property Services,Castle Donington,Responsive Works - Buildings,27/01/20,Premises Related Expenditure,103629,NEIGHBOURHOODS,,1863
99.83,Clearwater Technology Ltd,Communities,Community Development,Sir Julien Cahn Pavilion,Service Maintenance Contracts,27/03/20,Premises Related Expenditure,105357,COMMUNITIES,,8993
99.60,Reach Publishing Services Limited,Communities,Planning & Growth,Conservation,Advertising,09/01/20,Supplies & Services,103151,COMMUNITIES,,1171
92.48,Reach Publishing Services Limited,Communities,Planning & Growth,Conservation,Advertising,23/01/20,Supplies & Services,103431,COMMUNITIES,,1171
92.33,Clearwater Technology Ltd,Communities,Community Development,Gamston Community Hall,Service Maintenance Contracts,27/03/20,Premises Related Expenditure,105357,COMMUNITIES,,8992
90.00,Access Doors Ltd,Transformation,Property Services,Unit 10 Moorbridge,Service Maintenance Contracts,18/03/20,Premises Related Expenditure,104927,NEIGHBOURHOODS,,4788
85.00,Access Doors Ltd,Communities,Community Development,Sir Julien Cahn Pavilion,Service Maintenance Contracts,18/03/20,Premises Related Expenditure,104927,COMMUNITIES,,8993
79.92,Clearwater Technology Ltd,Communities,Community Development,Alford Road,Service Maintenance Contracts,05/03/20,Premises Related Expenditure,104010,COMMUNITIES,,8940
79.92,Clearwater Technology Ltd,Neighbourhoods,Strategic Housing,Hostel Hound Lodge,Service Maintenance Contracts,05/03/20,Premises Related Expenditure,104010,NEIGHBOURHOODS,,1111
72.42,Clearwater Technology Ltd,Communities,Community Development,West Park,Service Maintenance Contracts,05/03/20,Premises Related Expenditure,104010,COMMUNITIES,,8994
60.00,Access Doors Ltd,Communities,Community Development,Gamston Community Hall,Service Maintenance Contracts,18/03/20,Premises Related Expenditure,104927,COMMUNITIES,,8992
60.00,Access Doors Ltd,Transformation,Property Services,The Point,Service Maintenance Contracts,18/03/20,Premises Related Expenditure,104927,TRANSFORMATION,,1886
58.33,Clearwater Technology Ltd,Transformation,Property Services,Castle Donington,Service Maintenance Contracts,27/03/20,Premises Related Expenditure,105357,NEIGHBOURHOODS,,1863
57.58,Clearwater Technology Ltd,Communities,Community Development,Lutterell Hall,Service Maintenance Contracts,05/03/20,Premises Related Expenditure,104010,COMMUNITIES,,8990
53.67,Clearwater Technology Ltd,Communities,Community Development,Rushcliffe Country Park,Service Maintenance Contracts,05/03/20,Premises Related Expenditure,104010,COMMUNITIES,,1375
50.00,Clearwater Technology Ltd,Transformation,Customer Services,Customer Services,Service Maintenance Contracts,27/03/20,Premises Related Expenditure,105357,TRANSFORMATION,,4807
50.00,Clearwater Technology Ltd,Transformation,Property Services,The Point,Service Maintenance Contracts,27/03/20,Premises Related Expenditure,105357,TRANSFORMATION,,1886
50.00,Clearwater Technology Ltd,Transformation,Property Services,Unit 10 Moorbridge,Service Maintenance Contracts,27/03/20,Premises Related Expenditure,105357,NEIGHBOURHOODS,,4788
49.92,Clearwater Technology Ltd,Communities,Community Development,Sir Julien Cahn Pavilion,Service Maintenance Contracts,05/03/20,Premises Related Expenditure,104010,COMMUNITIES,,8993
46.17,Clearwater Technology Ltd,Communities,Community Development,Gamston Community Hall,Service Maintenance Contracts,05/03/20,Premises Related Expenditure,104010,COMMUNITIES,,8992
33.24,Edenred,Transformation,Human Resources,Human Resources,Flexible Benefits,14/01/20,Employee Related Expenditure,103214,TRANSFORMATION,,4709
29.17,Clearwater Technology Ltd,Transformation,Property Services,Castle Donington,Service Maintenance Contracts,05/03/20,Premises Related Expenditure,104010,NEIGHBOURHOODS,,1863
28.40,Edenred,Transformation,Human Resources,Human Resources,Flexible Benefits,14/02/20,Employee Related Expenditure,104202,TRANSFORMATION,,4709
28.40,Edenred,Transformation,Human Resources,Human Resources,Flexible Benefits,20/03/20,Employee Related Expenditure,105010,TRANSFORMATION,,4709
25.00,Clearwater Technology Ltd,Transformation,Customer Services,Customer Services,Service Maintenance Contracts,05/03/20,Premises Related Expenditure,104010,TRANSFORMATION,,4807
25.00,Clearwater Technology Ltd,Transformation,Property Services,The Point,Service Maintenance Contracts,05/03/20,Premises Related Expenditure,104010,TRANSFORMATION,,1886
25.00,Clearwater Technology Ltd,Transformation,Property Services,Unit 10 Moorbridge,Service Maintenance Contracts,05/03/20,Premises Related Expenditure,104010,NEIGHBOURHOODS,,4788
1.97,Royal Mail Group Ltd,Finance & Corporate Services,Democratic Services,Borough Council Elections,Postages,06/02/20,Supplies & Services,103726,FINANCE & CORPORATE SERVICES,,1021
"-8,976.56",Parkwood Leisure Ltd,Transformation,Property Services,Arena Civic Centre,Water Charges,03/03/20,Premises Related Expenditure,101466,TRANSFORMATION,,4718
"20,228,809.18",,,,,,,,,,,
